Department family,Entity,Date,Expense type,Expense area,Supplier,Transaction number,Amount,Description
MoJ,LAA,02/09/22,EXP - PURCHASE OF GOODS/SERVICES - OTHER - Central Funds - Other,Central Funds,FACT WORLDWIDE LTD,M1164206/193018,"54,329.76",Court costs
MoJ,LAA,06/09/22,EXP - PURCHASE OF GOODS/SERVICES - NON-PO INVOICES PENDING REALLOCATION,CLS Direct,HINDUJA GLOBAL SOLUTIONS UK LTD,22-1136,"326,158.22",Professional services
MoJ,LAA,06/09/22,EXP - PURCHASE OF GOODS/SERVICES - OTHER - Central Funds - Other,Central Funds,RAHMAN RAVELLI SOLICITORS,M1156360/193124,"95,230.25",Court costs
MoJ,LAA,07/09/22,Legal Aid Higher Crime,LEGAL AID FUND,ABBEY SOLICITORS,2481492:161443001,"107,642.55",Legal Aid Higher Crime
MoJ,LAA,07/09/22,Legal Aid Civil Representation,LEGAL AID FUND,AGR LAW LTD,2480614:3000006000310044,"30,765.98",Legal Aid Civil Representation
MoJ,LAA,07/09/22,Legal Aid Higher Crime,LEGAL AID FUND,ALEXANDER COUSINS LTD,2480203:161395751,"107,574.07",Legal Aid Higher Crime
MoJ,LAA,07/09/22,Legal Aid Higher Crime,LEGAL AID FUND,ALEXANDER COUSINS LTD,2480203:161433557,"30,820.22",Legal Aid Higher Crime
MoJ,LAA,07/09/22,Legal Aid Higher Crime,LEGAL AID FUND,ALLISON J CLARE,2481222:161429031,"61,600.01",Legal Aid Higher Crime
MoJ,LAA,07/09/22,Legal Aid Higher Crime,LEGAL AID FUND,ANDREW C R HILL,2482590:161438962,"27,590.00",Legal Aid Higher Crime
MoJ,LAA,07/09/22,Legal Aid Higher Crime,LEGAL AID FUND,ANURAG MOHINDRU,2482477:161434883,"25,056.00",Legal Aid Higher Crime
MoJ,LAA,07/09/22,Legal Aid Higher Crime,LEGAL AID FUND,ARORA LODHI HEATH,2483148:161434152,"34,906.40",Legal Aid Higher Crime
MoJ,LAA,07/09/22,Legal Aid Civil Representation,LEGAL AID FUND,ASTREA LAW PRACTICE LTD,2479330:3000009296520020,"26,534.86",Legal Aid Civil Representation
MoJ,LAA,07/09/22,Legal Aid Civil Representation,LEGAL AID FUND,BAKERS SOLICITORS.,2482957:3000006406390007,"47,644.76",Legal Aid Civil Representation
MoJ,LAA,07/09/22,Legal Aid Civil Representation,LEGAL AID FUND,BAKERS SOLICITORS.,2482957:3000007821610012,"25,517.92",Legal Aid Civil Representation
MoJ,LAA,07/09/22,Legal Aid Higher Crime,LEGAL AID FUND,BARK & CO,2481649:161395988,"107,574.07",Legal Aid Higher Crime
MoJ,LAA,07/09/22,Legal Aid Higher Crime,LEGAL AID FUND,BARK & CO,2481649:161439322,"89,975.11",Legal Aid Higher Crime
MoJ,LAA,07/09/22,Legal Aid Civil Representation,LEGAL AID FUND,BASTIAN LLOYD MORRIS SOLICITOR ADVOCATES,2482833:3000006641610013,"34,862.34",Legal Aid Civil Representation
MoJ,LAA,07/09/22,Legal Aid Civil Representation,LEGAL AID FUND,BATES & MOUNTAIN,2480346:3000006899060016,"30,231.30",Legal Aid Civil Representation
MoJ,LAA,07/09/22,Legal Aid Civil Representation,LEGAL AID FUND,BATTENS LTD,2481740:3000008908510021,"28,429.62",Legal Aid Civil Representation
MoJ,LAA,07/09/22,Legal Aid Higher Crime,LEGAL AID FUND,BERKELEY SQUARE SOLICITORS LTD,2479453:161440222,"51,252.11",Legal Aid Higher Crime
MoJ,LAA,07/09/22,Legal Aid Civil Representation,LEGAL AID FUND,BORNEO MARTELL TURNER COULSTON LLP,2480357:3000009648310010,"25,519.86",Legal Aid Civil Representation
MoJ,LAA,07/09/22,Legal Aid Higher Crime,LEGAL AID FUND,BOWDEN JONES LTD ABS,2480172:161435311,"73,237.64",Legal Aid Higher Crime
MoJ,LAA,07/09/22,Legal Aid Civil Representation,LEGAL AID FUND,BRAD S LAWLOR,2480787:3000006900260076,"48,138.62",Legal Aid Civil Representation
MoJ,LAA,07/09/22,Legal Aid Civil Representation,LEGAL AID FUND,BRIGHTON & HOVE LAW,2482223:3000011628650018,"26,136.00",Legal Aid Civil Representation
MoJ,LAA,07/09/22,Legal Aid Civil Representation,LEGAL AID FUND,CARPENTER SINGH SOLICITORS,2483096:3000007795750009,"31,880.65",Legal Aid Civil Representation
MoJ,LAA,07/09/22,Legal Aid Higher Crime,LEGAL AID FUND,CARR & CO,2483039:161433756,"62,150.10",Legal Aid Higher Crime
MoJ,LAA,07/09/22,Legal Aid Higher Crime,LEGAL AID FUND,CARSON KAYE SOLICITORS,2480880:161395277,"52,704.13",Legal Aid Higher Crime
MoJ,LAA,07/09/22,Legal Aid Civil Representation,LEGAL AID FUND,CARTWRIGHT KING LTD,2480177:3000005567520029,"27,732.65",Legal Aid Civil Representation
MoJ,LAA,07/09/22,Legal Aid Civil Representation,LEGAL AID FUND,CARVERS LLP,2480244:3000005108230033,"39,483.48",Legal Aid Civil Representation
MoJ,LAA,07/09/22,Legal Aid Higher Crime,LEGAL AID FUND,CATHERINE A FLINT,2482172:161440076,"29,094.00",Legal Aid Higher Crime
MoJ,LAA,07/09/22,Legal Aid Civil Representation,LEGAL AID FUND,CATHERINE S ELLIS,2482555:3000014020610003,"26,369.28",Legal Aid Civil Representation
MoJ,LAA,07/09/22,Legal Aid Legal Help,LEGAL AID FUND,CB LEGAL ADVISORY LTD T/A CB SOLICITORS,2479342:161443947,"28,775.46",Legal Aid Legal Help
MoJ,LAA,07/09/22,Legal Aid Civil Representation,LEGAL AID FUND,CHARLES STRACHAN SOLICITORS LTD,2482801:3000005435900031,"28,368.09",Legal Aid Civil Representation
MoJ,LAA,07/09/22,Legal Aid Higher Crime,LEGAL AID FUND,CHARTER SOLICITORS,2480870:161439089,"26,145.28",Legal Aid Higher Crime
MoJ,LAA,07/09/22,Legal Aid Civil Representation,LEGAL AID FUND,CHRISTINE JOHNSON,2479764:3000006775430047,"30,649.85",Legal Aid Civil Representation
MoJ,LAA,07/09/22,Legal Aid Higher Crime,LEGAL AID FUND,CITY LAW CHAMBERS LTD,2482796:161434589,"89,975.11",Legal Aid Higher Crime
MoJ,LAA,07/09/22,Legal Aid Higher Crime,LEGAL AID FUND,COMMONS LAW CIC,2480735:161436517,"59,665.88",Legal Aid Higher Crime
MoJ,LAA,07/09/22,Legal Aid Civil Representation,LEGAL AID FUND,CONSTANCE M HUGHES,2481346:3000006906050035,"29,027.70",Legal Aid Civil Representation
MoJ,LAA,07/09/22,Legal Aid Higher Crime,LEGAL AID FUND,CUNNINGHAMS LYTHGOE CAPLIN LTD,2482941:161437616,"37,296.80",Legal Aid Higher Crime
MoJ,LAA,07/09/22,Legal Aid Higher Crime,LEGAL AID FUND,DAVID J MAUNDER,2482518:161439681,"28,398.00",Legal Aid Higher Crime
MoJ,LAA,07/09/22,Legal Aid Higher Crime,LEGAL AID FUND,DAVID SEDGWICK SOLICITORS LTD,2482827:161434503,"107,970.13",Legal Aid Higher Crime
MoJ,LAA,07/09/22,Legal Aid Civil Representation,LEGAL AID FUND,DMA LAW LTD,2480137:3000011209970017,"29,797.55",Legal Aid Civil Representation
MoJ,LAA,07/09/22,Legal Aid Higher Crime,LEGAL AID FUND,DN LAW LTD,2480881:161433474,"26,716.71",Legal Aid Higher Crime
MoJ,LAA,07/09/22,Legal Aid Civil Representation,LEGAL AID FUND,DODDS SOLICITORS LLP,2481619:3000006215840027,"26,420.91",Legal Aid Civil Representation
MoJ,LAA,07/09/22,Legal Aid Civil Representation,LEGAL AID FUND,DODDS SOLICITORS LLP,2481619:3000008248410017,"40,342.82",Legal Aid Civil Representation
MoJ,LAA,07/09/22,Legal Aid Civil Representation,LEGAL AID FUND,DUNCAN LEWIS SOLICITORS  LTD,2482254:3000005053510049,"28,101.97",Legal Aid Civil Representation
MoJ,LAA,07/09/22,Legal Aid Civil Representation,LEGAL AID FUND,DUNCAN LEWIS SOLICITORS  LTD,2482881:3000004554400022,"25,816.68",Legal Aid Civil Representation
MoJ,LAA,07/09/22,Legal Aid Civil Representation,LEGAL AID FUND,EDWARD J GRIEVES,2480939:3000004147310148,"26,150.15",Legal Aid Civil Representation
MoJ,LAA,07/09/22,Legal Aid Higher Crime,LEGAL AID FUND,ELDWICK LAW,2480757:161395941,"89,975.11",Legal Aid Higher Crime
MoJ,LAA,07/09/22,Legal Aid Civil Representation,LEGAL AID FUND,ELIZABETH M HARRIS,2481113:3000013216260019,"25,989.12",Legal Aid Civil Representation
MoJ,LAA,07/09/22,Legal Aid Civil Representation,LEGAL AID FUND,ELLIOT MATHER LLP,2480312:3000014296890010,"28,800.00",Legal Aid Civil Representation
MoJ,LAA,07/09/22,Legal Aid Higher Crime,LEGAL AID FUND,FIONA CLANCY,2480833:161407312,"35,000.00",Legal Aid Higher Crime
MoJ,LAA,07/09/22,Legal Aid Higher Crime,LEGAL AID FUND,FORBES SOLICITORS LLP,2482939:161435678,"68,560.95",Legal Aid Higher Crime
MoJ,LAA,07/09/22,Legal Aid Civil Representation,LEGAL AID FUND,FREEMAN JOHNSON,2482995:3000013904070017,"38,392.61",Legal Aid Civil Representation
MoJ,LAA,07/09/22,Legal Aid Higher Crime,LEGAL AID FUND,G T STEWART LTD,2480760:161436272,"43,994.78",Legal Aid Higher Crime
MoJ,LAA,07/09/22,Legal Aid Higher Crime,LEGAL AID FUND,G T STEWART LTD,2480761:161434364,"54,105.82",Legal Aid Higher Crime
MoJ,LAA,07/09/22,Legal Aid Civil Representation,LEGAL AID FUND,GGP LAW LTD,2483114:3000006446270023,"31,254.18",Legal Aid Civil Representation
MoJ,LAA,07/09/22,Legal Aid Higher Crime,LEGAL AID FUND,GRACELAND SOLICITORS,2482795:161439139,"89,975.11",Legal Aid Higher Crime
MoJ,LAA,07/09/22,Legal Aid Higher Crime,LEGAL AID FUND,GSG LAW (LTD),2480766:161435337,"87,244.38",Legal Aid Higher Crime
MoJ,LAA,07/09/22,Legal Aid Civil Representation,LEGAL AID FUND,HARDINGS SOLICITORS LTD,2481495:3000013267460009,"34,048.26",Legal Aid Civil Representation
MoJ,LAA,07/09/22,Legal Aid Higher Crime,LEGAL AID FUND,HARRIS CUFFARO & NICHOLS,2481661:161396000,"107,574.07",Legal Aid Higher Crime
MoJ,LAA,07/09/22,Legal Aid Higher Crime,LEGAL AID FUND,HARRIS SOLICITORS LTD,2480101:161396025,"29,983.03",Legal Aid Higher Crime
MoJ,LAA,07/09/22,Legal Aid Higher Crime,LEGAL AID FUND,HARRIS SOLICITORS LTD,2480101:161436985,"89,975.11",Legal Aid Higher Crime
MoJ,LAA,07/09/22,Legal Aid Higher Crime,LEGAL AID FUND,HAYGARTH JONES,2481677:161437847,"49,637.77",Legal Aid Higher Crime
MoJ,LAA,07/09/22,Legal Aid Civil Representation,LEGAL AID FUND,HELEN FITZSIMONS FAMILY LAW,2479364:3000004595080025,"29,418.40",Legal Aid Civil Representation
MoJ,LAA,07/09/22,Legal Aid Higher Crime,LEGAL AID FUND,HODGE JONES & ALLEN SOLICITORS LTD,2483083:161439129,"41,404.99",Legal Aid Higher Crime
MoJ,LAA,07/09/22,Legal Aid Civil Representation,LEGAL AID FUND,HPJV SOLICITORS,2483137:3000005248020033,"27,516.44",Legal Aid Civil Representation
MoJ,LAA,07/09/22,Legal Aid Higher Crime,LEGAL AID FUND,HUMPHRYS DAWSON,2480220:161396057,"61,303.61",Legal Aid Higher Crime
MoJ,LAA,07/09/22,Legal Aid Higher Crime,LEGAL AID FUND,I B B LAW LLP,2481486:161396356,"83,455.45",Legal Aid Higher Crime
MoJ,LAA,07/09/22,Legal Aid Civil Representation,LEGAL AID FUND,IRWIN MITCHELL LLP,2479599:3000008351210009,"27,458.31",Legal Aid Civil Representation
MoJ,LAA,07/09/22,Legal Aid Higher Crime,LEGAL AID FUND,ISHANRAJ DAVE,2479868:161395410,"30,420.00",Legal Aid Higher Crime
MoJ,LAA,07/09/22,Legal Aid Higher Crime,LEGAL AID FUND,J KEITH HARRISON,2480048:161395434,"29,928.00",Legal Aid Higher Crime
MoJ,LAA,07/09/22,Legal Aid Higher Crime,LEGAL AID FUND,J KIRSTY BRIMELOW,2479791:161396202,"51,228.00",Legal Aid Higher Crime
MoJ,LAA,07/09/22,Legal Aid Civil Representation,LEGAL AID FUND,JACKSON WEST SOLICITORS INC JOHNSON & GAUNT SOLICITORS LTD,2483127:3000005030660050,"42,302.09",Legal Aid Civil Representation
MoJ,LAA,07/09/22,Legal Aid Higher Crime,LEGAL AID FUND,JMW SOLICITORS LLP,2480438:161429406,"72,960.51",Legal Aid Higher Crime
MoJ,LAA,07/09/22,Legal Aid Higher Crime,LEGAL AID FUND,JMW SOLICITORS LLP,2480438:161430294,"30,000.00",Legal Aid Higher Crime
MoJ,LAA,07/09/22,Legal Aid Civil Representation,LEGAL AID FUND,JOHN JACKSON,2481258:161335572,"48,144.00",Legal Aid Civil Representation
MoJ,LAA,07/09/22,Legal Aid Civil Representation,LEGAL AID FUND,JONATHAN R B ADLER,2482529:3000008248410016,"25,558.60",Legal Aid Civil Representation
MoJ,LAA,07/09/22,Legal Aid Higher Crime,LEGAL AID FUND,JOSEPH HILL & CO,2480338:161396332,"71,545.90",Legal Aid Higher Crime
MoJ,LAA,07/09/22,Legal Aid Civil Representation,LEGAL AID FUND,JOSEPH S MURPHY,2482062:3000005248020032,"33,852.65",Legal Aid Civil Representation
MoJ,LAA,07/09/22,Legal Aid Civil Representation,LEGAL AID FUND,KATE M GRIEVE,2479901:3000008302650023,"31,197.34",Legal Aid Civil Representation
MoJ,LAA,07/09/22,Legal Aid Higher Crime,LEGAL AID FUND,KINGSMAN SOLICITORS LTD,2479469:161437679,"29,664.55",Legal Aid Higher Crime
MoJ,LAA,07/09/22,Legal Aid Civil Representation,LEGAL AID FUND,LACEYS,2481764:3000007045360019,"33,079.64",Legal Aid Civil Representation
MoJ,LAA,07/09/22,Legal Aid Lower Crime,LEGAL AID FUND,LANGFIELD LAW LTD,2480744:161406105,"50,000.00",Legal Aid Lower Crime
MoJ,LAA,07/09/22,Legal Aid Lower Crime,LEGAL AID FUND,LANGFIELD LAW LTD,2480744:161406106,"33,361.53",Legal Aid Lower Crime
MoJ,LAA,07/09/22,Legal Aid Higher Crime,LEGAL AID FUND,LANSBURY WORTHINGTON LTD,2481658:161436067,"28,289.15",Legal Aid Higher Crime
MoJ,LAA,07/09/22,Legal Aid Higher Crime,LEGAL AID FUND,LANSBURY WORTHINGTON LTD,2481658:161439638,"69,796.09",Legal Aid Higher Crime
MoJ,LAA,07/09/22,Legal Aid Civil Representation,LEGAL AID FUND,LEVINS SOLICITORS,2482886:3000006775430049,"34,849.53",Legal Aid Civil Representation
MoJ,LAA,07/09/22,Legal Aid Higher Crime,LEGAL AID FUND,LIBERTY LAW SOLICITORS LTD,2482834:161396136,"26,464.44",Legal Aid Higher Crime
MoJ,LAA,07/09/22,Legal Aid Higher Crime,LEGAL AID FUND,LIBERTY SOLICITORS.,2480125:161433422,"29,664.55",Legal Aid Higher Crime
MoJ,LAA,07/09/22,Legal Aid Higher Crime,LEGAL AID FUND,LLOYDS PR SOLICITORS,2482794:161436525,"46,440.85",Legal Aid Higher Crime
MoJ,LAA,07/09/22,Legal Aid Higher Crime,LEGAL AID FUND,LLOYDS PR SOLICITORS,2482794:161439567,"37,791.76",Legal Aid Higher Crime
MoJ,LAA,07/09/22,Legal Aid Higher Crime,LEGAL AID FUND,M B LAW LTD,2482050:161436277,"89,975.11",Legal Aid Higher Crime
MoJ,LAA,07/09/22,Legal Aid Civil Representation,LEGAL AID FUND,MAKIN DIXON SOLICITORS LTD,2482809:3000002312220023,"25,115.60",Legal Aid Civil Representation
MoJ,LAA,07/09/22,Legal Aid Higher Crime,LEGAL AID FUND,MARTIN MURRAY & ASSOCIATES,2481814:161434319,"33,031.15",Legal Aid Higher Crime
MoJ,LAA,07/09/22,Legal Aid Civil Representation,LEGAL AID FUND,MARTIN T WESTGATE QC,2479793:161441549,"34,342.20",Legal Aid Civil Representation
MoJ,LAA,07/09/22,Legal Aid Higher Crime,LEGAL AID FUND,MATTHEW J P ROBERTS,2479705:161436444,"25,230.00",Legal Aid Higher Crime
MoJ,LAA,07/09/22,Legal Aid Higher Crime,LEGAL AID FUND,METCALFE DAVID EYRES,2483054:161434129,"56,742.71",Legal Aid Higher Crime
MoJ,LAA,07/09/22,Legal Aid Higher Crime,LEGAL AID FUND,MIAN & CO,2481640:161435832,"74,577.09",Legal Aid Higher Crime
MoJ,LAA,07/09/22,Legal Aid Higher Crime,LEGAL AID FUND,MICHAEL CARROLL & CO,2482965:161433061,"46,082.99",Legal Aid Higher Crime
MoJ,LAA,07/09/22,Legal Aid Higher Crime,LEGAL AID FUND,MICHAEL F R HOLLAND QC,2481373:161395153,"26,448.00",Legal Aid Higher Crime
MoJ,LAA,07/09/22,Legal Aid Higher Crime,LEGAL AID FUND,MICHAEL G BROMLEY-MARTIN QC,2482743:161396450,"28,452.00",Legal Aid Higher Crime
MoJ,LAA,07/09/22,Legal Aid Higher Crime,LEGAL AID FUND,MICHAEL HENDERSON & CO LTD,2481629:161437527,"27,310.22",Legal Aid Higher Crime
MoJ,LAA,07/09/22,Legal Aid Higher Crime,LEGAL AID FUND,MICHAEL J LAVERY,2482434:161442477,"63,840.00",Legal Aid Higher Crime
MoJ,LAA,07/09/22,Legal Aid Higher Crime,LEGAL AID FUND,MICHAEL P HAYTON,2479940:161412435,"80,360.00",Legal Aid Higher Crime
MoJ,LAA,07/09/22,Legal Aid Civil Representation,LEGAL AID FUND,MICHAELS & CO LAW LTD,2480466:3000006887320001,"41,900.27",Legal Aid Civil Representation
MoJ,LAA,07/09/22,Legal Aid Higher Crime,LEGAL AID FUND,MICHELLE NELSON,2481256:161439915,"65,988.00",Legal Aid Higher Crime
MoJ,LAA,07/09/22,Legal Aid Civil Representation,LEGAL AID FUND,MLL LTD,2480431:3000005714290028,"38,956.83",Legal Aid Civil Representation
MoJ,LAA,07/09/22,Legal Aid Higher Crime,LEGAL AID FUND,MORGAN HAS SOLICITORS,2482078:161435429,"105,483.01",Legal Aid Higher Crime
MoJ,LAA,07/09/22,Legal Aid Civil Representation,LEGAL AID FUND,MORRISON SPOWART LTD,2482956:3000006698030010,"25,951.49",Legal Aid Civil Representation
MoJ,LAA,07/09/22,Legal Aid Civil Representation,LEGAL AID FUND,MOTLEY & HOPE,2481610:3000007705070017,"26,520.10",Legal Aid Civil Representation
MoJ,LAA,07/09/22,Legal Aid Civil Representation,LEGAL AID FUND,NAFEESA CHOUDHURY,2482510:3000004427440020,"36,936.00",Legal Aid Civil Representation
MoJ,LAA,07/09/22,Legal Aid Civil Representation,LEGAL AID FUND,NATIONAL LEGAL SERVICE LTD,2479334:3000005306180024,"33,003.13",Legal Aid Civil Representation
MoJ,LAA,07/09/22,Legal Aid Higher Crime,LEGAL AID FUND,NICHOLAS P RHODES QC,2481409:161440688,"32,580.00",Legal Aid Higher Crime
MoJ,LAA,07/09/22,Legal Aid Civil Representation,LEGAL AID FUND,REDACTED,2483161:3000003652840022,"35,000.00",Legal Aid Civil Representation
MoJ,LAA,07/09/22,Legal Aid Civil Representation,LEGAL AID FUND,PORTER DODSON,2481831:3000013606230021,"29,080.80",Legal Aid Civil Representation
MoJ,LAA,07/09/22,Legal Aid Higher Crime,LEGAL AID FUND,REBECCA L PENFOLD,2480866:161438311,"33,554.16",Legal Aid Higher Crime
MoJ,LAA,07/09/22,Legal Aid Higher Crime,LEGAL AID FUND,RENSHAW DERRICK & CO,2481746:161395429,"39,353.63",Legal Aid Higher Crime
MoJ,LAA,07/09/22,Legal Aid Higher Crime,LEGAL AID FUND,RICHARD BROWN & CO,2481612:161395801,"84,166.92",Legal Aid Higher Crime
MoJ,LAA,07/09/22,Legal Aid Higher Crime,LEGAL AID FUND,RICHARD FISHER,2479884:161444164,"93,520.00",Legal Aid Higher Crime
MoJ,LAA,07/09/22,Legal Aid Higher Crime,LEGAL AID FUND,ROBERT A WARD,2482473:161440753,"41,346.00",Legal Aid Higher Crime
MoJ,LAA,07/09/22,Legal Aid Higher Crime,LEGAL AID FUND,ROSSANO SCAMARDELLA,2479945:161437198,"30,048.00",Legal Aid Higher Crime
MoJ,LAA,07/09/22,Legal Aid Civil Representation,LEGAL AID FUND,ROTHERHAM & CO LTD,2480424:3000005387130013,"26,272.38",Legal Aid Civil Representation
MoJ,LAA,07/09/22,Legal Aid Civil Representation,LEGAL AID FUND,ROWBERRY MORRIS THAMES VALLEY LLP,2483131:3000003687900006,"30,640.63",Legal Aid Civil Representation
MoJ,LAA,07/09/22,Legal Aid Civil Representation,LEGAL AID FUND,ROWBERRY MORRIS THAMES VALLEY LLP,2483131:3000003791630011,"35,493.37",Legal Aid Civil Representation
MoJ,LAA,07/09/22,Legal Aid Higher Crime,LEGAL AID FUND,RUSTEM GUARDIAN SOLICITORS LTD,2481468:161437712,"69,926.92",Legal Aid Higher Crime
MoJ,LAA,07/09/22,Legal Aid Higher Crime,LEGAL AID FUND,RUTH D ZENTLER-MUNRO,2482474:161436339,"42,042.00",Legal Aid Higher Crime
MoJ,LAA,07/09/22,Legal Aid Higher Crime,LEGAL AID FUND,SAK SOLICITORS,2482181:161436131,"29,664.55",Legal Aid Higher Crime
MoJ,LAA,07/09/22,Legal Aid Civil Representation,LEGAL AID FUND,SCOTT MONCRIEFF & ASSOCIATES LTD,2481810:161412001,"43,604.24",Legal Aid Civil Representation
MoJ,LAA,07/09/22,Legal Aid Civil Representation,LEGAL AID FUND,SPARLING BENHAM & BROUGH,2481564:3000007676040020,"38,836.06",Legal Aid Civil Representation
MoJ,LAA,07/09/22,Legal Aid Higher Crime,LEGAL AID FUND,STEPHENSONS SOLICITORS LLP,2481717:161429651,"27,576.52",Legal Aid Higher Crime
MoJ,LAA,07/09/22,Legal Aid Civil Representation,LEGAL AID FUND,STRAW & PEARCE,2480616:3000008302650024,"34,824.83",Legal Aid Civil Representation
MoJ,LAA,07/09/22,Legal Aid Civil Representation,LEGAL AID FUND,STUART GORDON SOLICITORS,2482861:144812932,"44,998.00",Legal Aid Civil Representation
MoJ,LAA,07/09/22,Legal Aid Higher Crime,LEGAL AID FUND,STUART MILLER SOLICITORS LTD,2481737:161437594,"29,664.55",Legal Aid Higher Crime
MoJ,LAA,07/09/22,Legal Aid Higher Crime,LEGAL AID FUND,STUART MILLER SOLICITORS LTD,2481737:161438077,"89,975.11",Legal Aid Higher Crime
MoJ,LAA,07/09/22,Legal Aid Higher Crime,LEGAL AID FUND,SWEETMAN BURKE & SINKER,2483123:161435614,"29,664.55",Legal Aid Higher Crime
MoJ,LAA,07/09/22,Legal Aid Higher Crime,LEGAL AID FUND,SWINBURNE SNOWBALL & JACKSON,2481725:161439656,"35,597.46",Legal Aid Higher Crime
MoJ,LAA,07/09/22,Legal Aid Civil Representation,LEGAL AID FUND,SWITALSKI'S SOLICITORS LTD,2482787:161355113,"40,000.00",Legal Aid Civil Representation
MoJ,LAA,07/09/22,Legal Aid Civil Representation,LEGAL AID FUND,T V EDWARDS LLP,2481659:3000006116340015,"40,077.02",Legal Aid Civil Representation
MoJ,LAA,07/09/22,Legal Aid Civil Representation,LEGAL AID FUND,T V EDWARDS LLP,2481659:3000011172320007,"25,207.09",Legal Aid Civil Representation
MoJ,LAA,07/09/22,Legal Aid Civil Representation,LEGAL AID FUND,TALBOTS LAW LTD,2482346:3000007052210009,"34,253.30",Legal Aid Civil Representation
MoJ,LAA,07/09/22,Legal Aid Higher Crime,LEGAL AID FUND,THE JOHNSON PARTNERSHIP-ADVOCATE,2479781:161434721,"61,272.00",Legal Aid Higher Crime
MoJ,LAA,07/09/22,Legal Aid Higher Crime,LEGAL AID FUND,VICTORIA C SMITH-SWAIN,2482296:161433176,"43,710.00",Legal Aid Higher Crime
MoJ,LAA,07/09/22,Legal Aid Higher Crime,LEGAL AID FUND,WAINWRIGHT & CUMMINS LLP,2481487:161438301,"44,799.78",Legal Aid Higher Crime
MoJ,LAA,07/09/22,Legal Aid Higher Crime,LEGAL AID FUND,WATERFORDS SOLICITORS,2483151:161433465,"28,813.57",Legal Aid Higher Crime
MoJ,LAA,07/09/22,Legal Aid Civil Representation,LEGAL AID FUND,WILLIAM J TYLER,2479915:3000004917480029,"34,927.20",Legal Aid Civil Representation
MoJ,LAA,07/09/22,Legal Aid Civil Representation,LEGAL AID FUND,WILLIAM J TYLER,2479915:3000005384700049,"39,646.80",Legal Aid Civil Representation
MoJ,LAA,09/09/22,EXP - PURCHASE OF GOODS/SERVICES - OTHER - Translation / Interpreting Services,Central Funds,THEBIGWORD INTERPRETING SERVICES LTD,91032704,"1,187,077.78",Translation and interpreting services
MoJ,LAA,12/09/22,EXP - RENTALS UNDER NON-PFI OPERATING LEASES - BUILDINGS,Property Costs - Nottingham,GOVERNMENT PROPERTY AGENCY,00000001/18012,"26,245.66",Property related charges
MoJ,LAA,12/09/22,EXP - RENTALS UNDER NON-PFI OPERATING LEASES - BUILDINGS,Property Costs - Nottingham,GOVERNMENT PROPERTY AGENCY,00000001/17917,"49,545.65",Property related charges
MoJ,LAA,12/09/22,EXP - RENTALS UNDER NON-PFI OPERATING LEASES - BUILDINGS,Property Costs - Liverpool,GOVERNMENT PROPERTY AGENCY,00000001/17916,"86,486.56",Property related charges
MoJ,LAA,12/09/22,EXP - PURCHASE OF GOODS/SERVICES - NON-PO INVOICES PENDING REALLOCATION,CLS Direct,HINDUJA GLOBAL SOLUTIONS UK LTD,22-1159,"342,148.38",Professional services
MoJ,LAA,14/09/22,Legal Aid Civil Representation,LEGAL AID FUND,A & N CARE SOLICITORS,2483937:3000011640820012,"27,134.28",Legal Aid Civil Representation
MoJ,LAA,14/09/22,Legal Aid Civil Representation,LEGAL AID FUND,A & N CARE SOLICITORS,2483940:3000003964040020,"130,127.47",Legal Aid Civil Representation
MoJ,LAA,14/09/22,Legal Aid Higher Crime,LEGAL AID FUND,ABR SOLICITORS,2485766:161453596,"27,025.92",Legal Aid Higher Crime
MoJ,LAA,14/09/22,Legal Aid Higher Crime,LEGAL AID FUND,ABV SOLICITORS,2487198:161501905,"112,528.16",Legal Aid Higher Crime
MoJ,LAA,14/09/22,Legal Aid Civil Representation,LEGAL AID FUND,ADAM GORDON CLEGG,2486815:3000005876750024,"34,336.25",Legal Aid Civil Representation
MoJ,LAA,14/09/22,Legal Aid Civil Representation,LEGAL AID FUND,ADEO FRASER,2486447:3000008314710013,"35,640.00",Legal Aid Civil Representation
MoJ,LAA,14/09/22,Legal Aid Higher Crime,LEGAL AID FUND,ADRIAN N EISSA KC,2485258:161492978,"78,200.00",Legal Aid Higher Crime
MoJ,LAA,14/09/22,Legal Aid Civil Representation,LEGAL AID FUND,AFG LAW LIMITED,2485969:3000011366260018,"25,132.37",Legal Aid Civil Representation
MoJ,LAA,14/09/22,Legal Aid Civil Representation,LEGAL AID FUND,AIDAN J W VINE QC,2485532:3000004994050087,"30,338.04",Legal Aid Civil Representation
MoJ,LAA,14/09/22,Legal Aid Civil Representation,LEGAL AID FUND,ALISON S GRIEF,2486826:3000006895610029,"60,195.60",Legal Aid Civil Representation
MoJ,LAA,14/09/22,Legal Aid Higher Crime,LEGAL AID FUND,ALTAF SOLICITORS LTD,2484346:161462562,"89,975.11",Legal Aid Higher Crime
MoJ,LAA,14/09/22,Legal Aid Higher Crime,LEGAL AID FUND,ALTAF SOLICITORS LTD,2484346:161470755,"89,975.11",Legal Aid Higher Crime
MoJ,LAA,14/09/22,Legal Aid Higher Crime,LEGAL AID FUND,ALTAF SOLICITORS LTD,2484346:161471228,"89,975.11",Legal Aid Higher Crime
MoJ,LAA,14/09/22,Legal Aid Higher Crime,LEGAL AID FUND,ALTAF SOLICITORS LTD,2484346:161496486,"33,066.93",Legal Aid Higher Crime
MoJ,LAA,14/09/22,Legal Aid Civil Representation,LEGAL AID FUND,AMANDA GINSBURG,2485404:3000011113110019,"35,760.36",Legal Aid Civil Representation
MoJ,LAA,14/09/22,Legal Aid Civil Representation,LEGAL AID FUND,ANTHONY COLLINS LLP,2487489:3000006184500014,"29,712.29",Legal Aid Civil Representation
MoJ,LAA,14/09/22,Legal Aid Higher Crime,LEGAL AID FUND,APPLEBY SHAW LTD,2486586:161453884,"29,664.55",Legal Aid Higher Crime
MoJ,LAA,14/09/22,Legal Aid Higher Crime,LEGAL AID FUND,ARCHER MAHER SOLICITORS,2485079:161478656,"65,793.86",Legal Aid Higher Crime
MoJ,LAA,14/09/22,Legal Aid Higher Crime,LEGAL AID FUND,ARCHER MAHER SOLICITORS,2485079:161497175,"68,159.45",Legal Aid Higher Crime
MoJ,LAA,14/09/22,Legal Aid Civil Representation,LEGAL AID FUND,AVON & SOMERSET FAMILY LAW LLP,2483754:3000006931840034,"36,576.43",Legal Aid Civil Representation
MoJ,LAA,14/09/22,Legal Aid Higher Crime,LEGAL AID FUND,AWH LEGAL LTD,2485962:161496448,"71,982.65",Legal Aid Higher Crime
MoJ,LAA,14/09/22,Legal Aid Civil Representation,LEGAL AID FUND,B K ROCHE,2485450:3000009205920039,"42,734.12",Legal Aid Civil Representation
MoJ,LAA,14/09/22,Legal Aid Civil Representation,LEGAL AID FUND,BAILEY WRIGHT & CO,2487510:3000004777000003,"50,661.68",Legal Aid Civil Representation
MoJ,LAA,14/09/22,Legal Aid Civil Representation,LEGAL AID FUND,BARKER BOOTH & EASTWOOD LTD,2484694:3000006437060018,"28,246.22",Legal Aid Civil Representation
MoJ,LAA,14/09/22,Legal Aid Civil Representation,LEGAL AID FUND,BATTENS LTD,2486109:3000011505510019,"41,826.88",Legal Aid Civil Representation
MoJ,LAA,14/09/22,Legal Aid Higher Crime,LEGAL AID FUND,BEN ROWE,2485120:161493962,"33,280.00",Legal Aid Higher Crime
MoJ,LAA,14/09/22,Legal Aid Civil Representation,LEGAL AID FUND,BERKSON FAMILY LAW SOLICITORS LTD,2485985:3000005330150023,"28,938.51",Legal Aid Civil Representation
MoJ,LAA,14/09/22,Legal Aid Civil Representation,LEGAL AID FUND,BERKSON FAMILY LAW SOLICITORS LTD,2485985:3000010060530019,"37,434.40",Legal Aid Civil Representation
MoJ,LAA,14/09/22,Legal Aid Civil Representation,LEGAL AID FUND,BERRI'S LAW LLP,2485069:3000006481200008,"25,509.28",Legal Aid Civil Representation
MoJ,LAA,14/09/22,Legal Aid Civil Representation,LEGAL AID FUND,BEST SOLICITORS,2485924:3000005869250024,"29,717.54",Legal Aid Civil Representation
MoJ,LAA,14/09/22,Legal Aid Civil Representation,LEGAL AID FUND,BEST SOLICITORS,2485924:3000005920770019,"43,170.54",Legal Aid Civil Representation
MoJ,LAA,14/09/22,Legal Aid Civil Representation,LEGAL AID FUND,BEU SOLICITORS,2485001:3000005908190003,"27,089.94",Legal Aid Civil Representation
MoJ,LAA,14/09/22,Legal Aid Legal Help,LEGAL AID FUND,BISON SOLICITORS LTD,2485188:161474625,"60,000.00",Legal Aid Legal Help
MoJ,LAA,14/09/22,Legal Aid Civil Representation,LEGAL AID FUND,BLACKFORDS LLP,2486071:3000006275700046,"31,601.36",Legal Aid Civil Representation
MoJ,LAA,14/09/22,Legal Aid Civil Representation,LEGAL AID FUND,BOYS & MAUGHAN,2484713:3000005876750026,"54,121.56",Legal Aid Civil Representation
MoJ,LAA,14/09/22,Legal Aid Civil Representation,LEGAL AID FUND,BRETHERTONS LLP,2483617:3000005411110034,"28,011.05",Legal Aid Civil Representation
MoJ,LAA,14/09/22,Legal Aid Civil Representation,LEGAL AID FUND,BRIGHOUSE WOLFF,2484685:3000007700630018,"31,014.03",Legal Aid Civil Representation
MoJ,LAA,14/09/22,Legal Aid Higher Crime,LEGAL AID FUND,BULLIVANT LAW LTD,2487243:161503650,"45,862.90",Legal Aid Higher Crime
MoJ,LAA,14/09/22,Legal Aid Civil Representation,LEGAL AID FUND,BUTCHER & BARLOW LLP,2485966:3000006853640026,"26,646.78",Legal Aid Civil Representation
MoJ,LAA,14/09/22,Legal Aid Higher Crime,LEGAL AID FUND,BUXTON RYAN & CO,2487266:161470695,"29,884.85",Legal Aid Higher Crime
MoJ,LAA,14/09/22,Legal Aid Higher Crime,LEGAL AID FUND,CAIRNS L D NELSON QC,2487033:161500690,"188,879.99",Legal Aid Higher Crime
MoJ,LAA,14/09/22,Legal Aid Civil Representation,LEGAL AID FUND,CAMERON JONES HUSSELL & HOWE,2484677:3000011463200015,"25,384.99",Legal Aid Civil Representation
MoJ,LAA,14/09/22,Legal Aid Civil Representation,LEGAL AID FUND,CAMPBELL LAW SOLICITORS,2487254:3000013181930004,"25,545.88",Legal Aid Civil Representation
MoJ,LAA,14/09/22,Legal Aid Civil Representation,LEGAL AID FUND,CARVERS LLP,2484421:3000008314710012,"27,839.37",Legal Aid Civil Representation
MoJ,LAA,14/09/22,Legal Aid Civil Representation,LEGAL AID FUND,CARVILL & JOHNSON LTD,2484629:3000005222790009,"26,157.67",Legal Aid Civil Representation
MoJ,LAA,14/09/22,Legal Aid Civil Representation,LEGAL AID FUND,CENTRAL ENGLAND LAW CENTRE LTD,2484476:161457700,"29,153.42",Legal Aid Civil Representation
MoJ,LAA,14/09/22,Legal Aid Higher Crime,LEGAL AID FUND,CHARLES STRACHAN SOLICITORS LTD,2484345:161463107,"105,857.75",Legal Aid Higher Crime
MoJ,LAA,14/09/22,Legal Aid Civil Representation,LEGAL AID FUND,CHIVERS SOLICITORS INC HOWCROFT SOLICITORS,2487329:3000011113110020,"38,651.80",Legal Aid Civil Representation
MoJ,LAA,14/09/22,Legal Aid Higher Crime,LEGAL AID FUND,CJCH SOLICITORS,2483895:161470820,"37,296.80",Legal Aid Higher Crime
MoJ,LAA,14/09/22,Legal Aid Civil Representation,LEGAL AID FUND,CLARKE KIERNAN LLP,2485101:3000007856290017,"25,929.00",Legal Aid Civil Representation
MoJ,LAA,14/09/22,Legal Aid Civil Representation,LEGAL AID FUND,CLEO PERRY,2486848:3000014418490002,"28,944.00",Legal Aid Civil Representation
MoJ,LAA,14/09/22,Legal Aid Higher Crime,LEGAL AID FUND,COBLEYS SOLICITORS LTD,2484504:161454618,"89,975.11",Legal Aid Higher Crime
MoJ,LAA,14/09/22,Legal Aid Civil Representation,LEGAL AID FUND,COOLE BEVIS LLP,2486074:3000004925620018,"38,049.67",Legal Aid Civil Representation
MoJ,LAA,14/09/22,Legal Aid Civil Representation,LEGAL AID FUND,CUMBRIA FAMILY LAW LTD,2486010:3000004671850042,"31,679.86",Legal Aid Civil Representation
MoJ,LAA,14/09/22,Legal Aid Higher Crime,LEGAL AID FUND,CUNNINGHAMS LYTHGOE CAPLIN LTD,2487262:161466853,"48,267.72",Legal Aid Higher Crime
MoJ,LAA,14/09/22,Legal Aid Higher Crime,LEGAL AID FUND,DAPINDERPAUL SINGH QC,2484154:161501807,"80,360.00",Legal Aid Higher Crime
MoJ,LAA,14/09/22,Legal Aid Higher Crime,LEGAL AID FUND,DARRYL INGRAM & CO,2485025:161462793,"89,975.11",Legal Aid Higher Crime
MoJ,LAA,14/09/22,Legal Aid Higher Crime,LEGAL AID FUND,DAVID N WALBANK,2486628:161459014,"61,600.01",Legal Aid Higher Crime
MoJ,LAA,14/09/22,Legal Aid Higher Crime,LEGAL AID FUND,DAVID W HARRIS & CO,2485054:161454083,"89,975.11",Legal Aid Higher Crime
MoJ,LAA,14/09/22,Legal Aid Civil Representation,LEGAL AID FUND,DAVIS & SIMMONDS & DONAGHEY,2483882:3000006137160011,"35,080.56",Legal Aid Civil Representation
MoJ,LAA,14/09/22,Legal Aid Higher Crime,LEGAL AID FUND,DJMS SOLICITORS LTD,2487192:161454404,"89,975.11",Legal Aid Higher Crime
MoJ,LAA,14/09/22,Legal Aid Civil Representation,LEGAL AID FUND,DODDS SOLICITORS LLP,2485879:3000005333100040,"32,866.61",Legal Aid Civil Representation
MoJ,LAA,14/09/22,Legal Aid Civil Representation,LEGAL AID FUND,DUNCAN LEWIS SOLICITORS  LTD,2483944:3000006034880020,"26,758.19",Legal Aid Civil Representation
MoJ,LAA,14/09/22,Legal Aid Higher Crime,LEGAL AID FUND,DUNCAN LEWIS SOLICITORS  LTD,2484447:161478705,"89,975.11",Legal Aid Higher Crime
MoJ,LAA,14/09/22,Legal Aid Higher Crime,LEGAL AID FUND,EBR ATTRIDGE LLP,2487255:161496892,"32,342.91",Legal Aid Higher Crime
MoJ,LAA,14/09/22,Legal Aid Higher Crime,LEGAL AID FUND,EDWARDS DUTHIE SHAMASH SOLICITORS,2486134:161454893,"43,698.44",Legal Aid Higher Crime
MoJ,LAA,14/09/22,Legal Aid Civil Representation,LEGAL AID FUND,ELIZABETH MCGRATH QC,2483987:3000005638260021,"46,915.20",Legal Aid Civil Representation
MoJ,LAA,14/09/22,Legal Aid Civil Representation,LEGAL AID FUND,ELIZABETH MCGRATH QC,2483987:3000005934290029,"46,526.40",Legal Aid Civil Representation
MoJ,LAA,14/09/22,Legal Aid Civil Representation,LEGAL AID FUND,ELIZABETH MCGRATH QC,2483987:3000006172790031,"39,600.00",Legal Aid Civil Representation
MoJ,LAA,14/09/22,Legal Aid Civil Representation,LEGAL AID FUND,ELIZABETH MCGRATH QC,2483987:3000011505510018,"48,405.60",Legal Aid Civil Representation
MoJ,LAA,14/09/22,Legal Aid Civil Representation,LEGAL AID FUND,ELIZABETH MCGRATH QC,2483987:3000014197770026,"34,927.20",Legal Aid Civil Representation
MoJ,LAA,14/09/22,Legal Aid Civil Representation,LEGAL AID FUND,ELLIOT MATHER LLP,2484601:3000009775710009,"29,504.36",Legal Aid Civil Representation
MoJ,LAA,14/09/22,Legal Aid Civil Representation,LEGAL AID FUND,EMG SOLICITORS LTD,2483614:3000006256520014,"26,878.79",Legal Aid Civil Representation
MoJ,LAA,14/09/22,Legal Aid Civil Representation,LEGAL AID FUND,FARLEYS SOLICITORS LLP,2485053:3000007690140017,"25,267.68",Legal Aid Civil Representation
MoJ,LAA,14/09/22,Legal Aid Civil Representation,LEGAL AID FUND,FLG LTD,2483777:3000013410400009,"33,072.44",Legal Aid Civil Representation
MoJ,LAA,14/09/22,Legal Aid Civil Representation,LEGAL AID FUND,FREEMAN JOHNSON,2487408:3000011016920014,"39,484.50",Legal Aid Civil Representation
MoJ,LAA,14/09/22,Legal Aid Higher Crime,LEGAL AID FUND,FRIDA K HUSSAIN,2484173:161479449,"53,460.00",Legal Aid Higher Crime
MoJ,LAA,14/09/22,Legal Aid Civil Representation,LEGAL AID FUND,GALBRAITH BRANLEY SOLICITORS,2487284:3000006081490013,"33,483.30",Legal Aid Civil Representation
MoJ,LAA,14/09/22,Legal Aid Higher Crime,LEGAL AID FUND,GAMLINS LAW LTD,2483650:161470771,"89,975.11",Legal Aid Higher Crime
MoJ,LAA,14/09/22,Legal Aid Civil Representation,LEGAL AID FUND,GEMMA CHAPMAN,2487090:3000011505510017,"37,999.04",Legal Aid Civil Representation
MoJ,LAA,14/09/22,Legal Aid Higher Crime,LEGAL AID FUND,GRACELAND SOLICITORS,2484338:161454244,"63,375.24",Legal Aid Higher Crime
MoJ,LAA,14/09/22,Legal Aid Higher Crime,LEGAL AID FUND,GREGORY UNWIN,2484126:161469193,"53,719.99",Legal Aid Higher Crime
MoJ,LAA,14/09/22,Legal Aid Civil Representation,LEGAL AID FUND,HANNE & CO,2484735:3000006081870018,"42,361.48",Legal Aid Civil Representation
MoJ,LAA,14/09/22,Legal Aid Civil Representation,LEGAL AID FUND,HANNE & CO,2484735:3000010817110020,"29,927.98",Legal Aid Civil Representation
MoJ,LAA,14/09/22,Legal Aid Higher Crime,LEGAL AID FUND,HARRIS SOLICITORS LTD,2485704:161454505,"44,756.16",Legal Aid Higher Crime
MoJ,LAA,14/09/22,Legal Aid Higher Crime,LEGAL AID FUND,HAYMANS SOLICITORS LTD,2485041:161462376,"67,057.20",Legal Aid Higher Crime
MoJ,LAA,14/09/22,Legal Aid Higher Crime,LEGAL AID FUND,HCB BERRY & BERRY LTD,2485980:161496143,"53,832.25",Legal Aid Higher Crime
MoJ,LAA,14/09/22,Legal Aid Higher Crime,LEGAL AID FUND,HENRY M SKUDRA,2486563:161503878,"41,440.00",Legal Aid Higher Crime
MoJ,LAA,14/09/22,Legal Aid Civil Representation,LEGAL AID FUND,HEPBURN DELANEY,2485948:3000007753770024,"28,689.00",Legal Aid Civil Representation
MoJ,LAA,14/09/22,Legal Aid Civil Representation,LEGAL AID FUND,HOWARD & CO,2484567:3000004748490021,"38,367.17",Legal Aid Civil Representation
MoJ,LAA,14/09/22,Legal Aid Civil Representation,LEGAL AID FUND,HOWARD & CO,2484567:3000004961110021,"48,288.16",Legal Aid Civil Representation
MoJ,LAA,14/09/22,Legal Aid Higher Crime,LEGAL AID FUND,HOWARD L BERNSTEIN - ADVOCATE,2486190:161477236,"41,600.00",Legal Aid Higher Crime
MoJ,LAA,14/09/22,Legal Aid Higher Crime,LEGAL AID FUND,I B B LAW LLP,2485834:161463019,"33,352.42",Legal Aid Higher Crime
MoJ,LAA,14/09/22,Legal Aid Civil Representation,LEGAL AID FUND,IRWIN MITCHELL LLP,2487439:3000006382160008,"27,207.80",Legal Aid Civil Representation
MoJ,LAA,14/09/22,Legal Aid Civil Representation,LEGAL AID FUND,IRWIN MITCHELL LLP,2487439:3000006868190007,"26,233.23",Legal Aid Civil Representation
MoJ,LAA,14/09/22,Legal Aid Civil Representation,LEGAL AID FUND,IRWIN MITCHELL LLP,2487439:3000007038310027,"26,344.97",Legal Aid Civil Representation
MoJ,LAA,14/09/22,Legal Aid Higher Crime,LEGAL AID FUND,J D SOLICITORS LTD,2485110:161471403,"29,139.05",Legal Aid Higher Crime
MoJ,LAA,14/09/22,Legal Aid Higher Crime,LEGAL AID FUND,J D SPICER ZEB,2485709:161478650,"47,807.13",Legal Aid Higher Crime
MoJ,LAA,14/09/22,Legal Aid Civil Representation,LEGAL AID FUND,JACKSON WEST SOLICITORS,2484644:3000010941310052,"25,027.82",Legal Aid Civil Representation
MoJ,LAA,14/09/22,Legal Aid Civil Representation,LEGAL AID FUND,JACOBS & CO SOLICITORS,2484371:3000013973150011,"25,183.63",Legal Aid Civil Representation
MoJ,LAA,14/09/22,Legal Aid Higher Crime,LEGAL AID FUND,JANE GREENHALGH,2484246:161502390,"61,240.00",Legal Aid Higher Crime
MoJ,LAA,14/09/22,Legal Aid Civil Representation,LEGAL AID FUND,JANET E CRAGG,2485605:3000012974900050,"25,012.80",Legal Aid Civil Representation
MoJ,LAA,14/09/22,Legal Aid Civil Representation,LEGAL AID FUND,JKC LAWYERS LLP,2485953:3000007463190012,"26,539.37",Legal Aid Civil Representation
MoJ,LAA,14/09/22,Legal Aid Civil Representation,LEGAL AID FUND,JOHN BARKERS SOLICITORS,2484527:161501714,"27,870.60",Legal Aid Civil Representation
MoJ,LAA,14/09/22,Legal Aid Higher Crime,LEGAL AID FUND,JONATHAN L ROSEN,2485445:161454243,"31,836.00",Legal Aid Higher Crime
MoJ,LAA,14/09/22,Legal Aid Civil Representation,LEGAL AID FUND,JONATHAN SAMPSON QC,2485510:3000008981910023,"35,925.12",Legal Aid Civil Representation
MoJ,LAA,14/09/22,Legal Aid Civil Representation,LEGAL AID FUND,JUDI EVANS,2485736:3000006895610030,"35,856.00",Legal Aid Civil Representation
MoJ,LAA,14/09/22,Legal Aid Civil Representation,LEGAL AID FUND,JULIA CHEETHAM,2484195:3000005858390026,"36,624.96",Legal Aid Civil Representation
MoJ,LAA,14/09/22,Legal Aid Civil Representation,LEGAL AID FUND,JWP SOLICITORS,2485854:3000005846780030,"41,603.01",Legal Aid Civil Representation
MoJ,LAA,14/09/22,Legal Aid Civil Representation,LEGAL AID FUND,KATHERINE BRUNNER QC,2486805:3000003130360021,"41,698.80",Legal Aid Civil Representation
MoJ,LAA,14/09/22,Legal Aid Civil Representation,LEGAL AID FUND,KATHERINE BRUNNER QC,2486805:3000013832060036,"29,244.24",Legal Aid Civil Representation
MoJ,LAA,14/09/22,Legal Aid Higher Crime,LEGAL AID FUND,KEMPS SOLICITORS,2486047:161478589,"27,590.82",Legal Aid Higher Crime
MoJ,LAA,14/09/22,Legal Aid Civil Representation,LEGAL AID FUND,KERRY HOLT,2486702:3000005925260051,"30,364.20",Legal Aid Civil Representation
MoJ,LAA,14/09/22,Legal Aid Higher Crime,LEGAL AID FUND,KEVIN MOLLOY,2486653:161479386,"25,502.40",Legal Aid Higher Crime
MoJ,LAA,14/09/22,Legal Aid Civil Representation,LEGAL AID FUND,KINGSFORDS SOLICITORS LTD,2484716:3000007847700008,"33,566.14",Legal Aid Civil Representation
MoJ,LAA,14/09/22,Legal Aid Civil Representation,LEGAL AID FUND,LEIGH DAY,2485807:161427889,"28,689.92",Legal Aid Civil Representation
MoJ,LAA,14/09/22,Legal Aid Higher Crime,LEGAL AID FUND,LEWIS NEDAS LAW LTD,2485063:161462681,"89,975.11",Legal Aid Higher Crime
MoJ,LAA,14/09/22,Legal Aid Higher Crime,LEGAL AID FUND,LEWIS NEDAS LAW LTD,2487479:161462522,"66,993.41",Legal Aid Higher Crime
MoJ,LAA,14/09/22,Legal Aid Higher Crime,LEGAL AID FUND,LIBERTY LAW SOLICITORS LTD,2487218:161497271,"26,678.17",Legal Aid Higher Crime
MoJ,LAA,14/09/22,Legal Aid Civil Representation,LEGAL AID FUND,LOCKINGS SOLICITORS,2484535:3000004906420024,"26,489.90",Legal Aid Civil Representation
MoJ,LAA,14/09/22,Legal Aid Civil Representation,LEGAL AID FUND,LOCKINGS SOLICITORS,2484535:3000007824110010,"32,533.68",Legal Aid Civil Representation
MoJ,LAA,14/09/22,Legal Aid Civil Representation,LEGAL AID FUND,LOCKINGS SOLICITORS,2484535:3000008529410013,"26,557.00",Legal Aid Civil Representation
MoJ,LAA,14/09/22,Legal Aid Higher Crime,LEGAL AID FUND,LONDONIUM SOLICITORS,2485036:161479205,"89,975.11",Legal Aid Higher Crime
MoJ,LAA,14/09/22,Legal Aid Higher Crime,LEGAL AID FUND,M & A SOLICITORS,2484510:161478870,"29,664.55",Legal Aid Higher Crime
MoJ,LAA,14/09/22,Legal Aid Civil Representation,LEGAL AID FUND,MACHINS SOLICITORS LLP,2484553:3000010778670022,"30,566.37",Legal Aid Civil Representation
MoJ,LAA,14/09/22,Legal Aid Civil Representation,LEGAL AID FUND,MAKIN DIXON SOLICITORS LTD,2487168:3000010704510015,"39,554.40",Legal Aid Civil Representation
MoJ,LAA,14/09/22,Legal Aid Higher Crime,LEGAL AID FUND,MAPLES SOLICITORS LLP,2485902:161478562,"84,166.92",Legal Aid Higher Crime
MoJ,LAA,14/09/22,Legal Aid Higher Crime,LEGAL AID FUND,MARK A WATSON,2485119:161471460,"33,672.00",Legal Aid Higher Crime
MoJ,LAA,14/09/22,Legal Aid Higher Crime,LEGAL AID FUND,MARK G SHARMAN,2485498:161459915,"41,600.00",Legal Aid Higher Crime
MoJ,LAA,14/09/22,Legal Aid Civil Representation,LEGAL AID FUND,MARK J TWOMEY QC,2487025:3000011359050016,"26,600.40",Legal Aid Civil Representation
MoJ,LAA,14/09/22,Legal Aid Civil Representation,LEGAL AID FUND,MARK J WATTERSON,2486753:3000005996510016,"25,745.28",Legal Aid Civil Representation
MoJ,LAA,14/09/22,Legal Aid Civil Representation,LEGAL AID FUND,MARK SENIOR,2485715:3000006658210005,"43,632.00",Legal Aid Civil Representation
MoJ,LAA,14/09/22,Legal Aid Higher Crime,LEGAL AID FUND,MARTIN J TAYLOR,2484128:161501806,"41,600.00",Legal Aid Higher Crime
MoJ,LAA,14/09/22,Legal Aid Higher Crime,LEGAL AID FUND,MARTYN PROWEL LTD,2487504:161470636,"44,756.16",Legal Aid Higher Crime
MoJ,LAA,14/09/22,Legal Aid Higher Crime,LEGAL AID FUND,MAURICE ANDREWS SOLICITORS LTD,2485883:161478852,"36,309.25",Legal Aid Higher Crime
MoJ,LAA,14/09/22,Legal Aid Civil Representation,LEGAL AID FUND,MILES & PARTNERS LLP,2487354:3000013347530006,"25,209.04",Legal Aid Civil Representation
MoJ,LAA,14/09/22,Legal Aid Higher Crime,LEGAL AID FUND,MORGAN HAS SOLICITORS,2486446:161462244,"86,536.44",Legal Aid Higher Crime
MoJ,LAA,14/09/22,Legal Aid Civil Representation,LEGAL AID FUND,MORRISON SPOWART LTD,2484424:3000005160450009,"29,476.15",Legal Aid Civil Representation
MoJ,LAA,14/09/22,Legal Aid Civil Representation,LEGAL AID FUND,MOTLEY & HOPE,2485869:3000006563560017,"27,866.91",Legal Aid Civil Representation
MoJ,LAA,14/09/22,Legal Aid Civil Representation,LEGAL AID FUND,NASH & CO SOLICITORS LLP,2486059:3000011906130024,"33,988.75",Legal Aid Civil Representation
MoJ,LAA,14/09/22,Legal Aid Higher Crime,LEGAL AID FUND,NATHANIEL D RUDOLF,2487122:161501983,"175,520.00",Legal Aid Higher Crime
MoJ,LAA,14/09/22,Legal Aid Civil Representation,LEGAL AID FUND,NELSONS SOLICITORS LTD,2485900:3000011359050018,"25,886.58",Legal Aid Civil Representation
MoJ,LAA,14/09/22,Legal Aid Civil Representation,LEGAL AID FUND,NICHOLAS A J GOODWIN QC,2485531:3000014134070017,"25,047.36",Legal Aid Civil Representation
MoJ,LAA,14/09/22,Legal Aid Civil Representation,LEGAL AID FUND,NICOL DENVIR & PURNELL SOLICITORS,2487499:3000006968310008,"34,070.93",Legal Aid Civil Representation
MoJ,LAA,14/09/22,Legal Aid Higher Crime,LEGAL AID FUND,NINA S GRAHAME QC,2484198:161469190,"31,740.00",Legal Aid Higher Crime
MoJ,LAA,14/09/22,Legal Aid Higher Crime,LEGAL AID FUND,NOBLE SOLICITORS,2486581:161496150,"28,788.12",Legal Aid Higher Crime
MoJ,LAA,14/09/22,Legal Aid Civil Representation,LEGAL AID FUND,OSBORNES SOLICITORS LLP,2486068:3000007786120029,"29,716.03",Legal Aid Civil Representation
MoJ,LAA,14/09/22,Legal Aid Civil Representation,LEGAL AID FUND,PAUL ANDREW WRIGHT,2484086:3000005648030016,"27,311.04",Legal Aid Civil Representation
MoJ,LAA,14/09/22,Legal Aid Civil Representation,LEGAL AID FUND,PAUL ANDREW WRIGHT,2484086:3000010733360024,"34,034.36",Legal Aid Civil Representation
MoJ,LAA,14/09/22,Legal Aid Civil Representation,LEGAL AID FUND,PAUL ANDREW WRIGHT,2484086:3000013450400026,"25,090.56",Legal Aid Civil Representation
MoJ,LAA,14/09/22,Legal Aid Civil Representation,LEGAL AID FUND,PAULINE M MOULDER,2486901:3000008324350014,"26,582.50",Legal Aid Civil Representation
MoJ,LAA,14/09/22,Legal Aid Civil Representation,LEGAL AID FUND,PEACE LEGAL LTD,2485882:3000006083080022,"25,504.62",Legal Aid Civil Representation
MoJ,LAA,14/09/22,Legal Aid Civil Representation,LEGAL AID FUND,PENELOPE A M HOWE,2485457:3000007230390021,"61,871.04",Legal Aid Civil Representation
MoJ,LAA,14/09/22,Legal Aid Higher Crime,LEGAL AID FUND,PETER A FINNIGAN QC,2485223:161471531,"27,060.00",Legal Aid Higher Crime
MoJ,LAA,14/09/22,Legal Aid Civil Representation,LEGAL AID FUND,PHILCOX GRAY LTD,2484736:161453488,"27,993.94",Legal Aid Civil Representation
MoJ,LAA,14/09/22,Legal Aid Lower Crime,LEGAL AID FUND,PURCELL PARKER LTD,2487290:161364945,"79,000.00",Legal Aid Lower Crime
MoJ,LAA,14/09/22,Legal Aid Higher Crime,LEGAL AID FUND,QAMAR SOLICITORS LLP,2487338:161478752,"26,270.84",Legal Aid Higher Crime
MoJ,LAA,14/09/22,Legal Aid Higher Crime,LEGAL AID FUND,QAMAR SOLICITORS LLP,2487338:161497001,"32,925.78",Legal Aid Higher Crime
MoJ,LAA,14/09/22,Legal Aid Civil Representation,LEGAL AID FUND,REBECCA FRANKLIN,2483955:3000008314710011,"34,214.40",Legal Aid Civil Representation
MoJ,LAA,14/09/22,Legal Aid Lower Crime,LEGAL AID FUND,REEDS SOLICITORS LLP,2486781:161365837,"25,524.35",Legal Aid Lower Crime
MoJ,LAA,14/09/22,Legal Aid Civil Representation,LEGAL AID FUND,REEDS SOLICITORS LLP,2486781:3000006409680017,"26,511.80",Legal Aid Civil Representation
MoJ,LAA,14/09/22,Legal Aid Civil Representation,LEGAL AID FUND,REEDS SOLICITORS LLP,2486781:3000006926660029,"34,252.60",Legal Aid Civil Representation
MoJ,LAA,14/09/22,Legal Aid Higher Crime,LEGAL AID FUND,RICHARD BENTWOOD,2486977:161501092,"25,140.00",Legal Aid Higher Crime
MoJ,LAA,14/09/22,Legal Aid Higher Crime,LEGAL AID FUND,RICHARD DAWSON,2485470:161493572,"47,360.00",Legal Aid Higher Crime
MoJ,LAA,14/09/22,Legal Aid Higher Crime,LEGAL AID FUND,RICHARD I DAVENPORT,2485439:161503877,"41,440.00",Legal Aid Higher Crime
MoJ,LAA,14/09/22,Legal Aid Civil Representation,LEGAL AID FUND,ROWBERRY MORRIS THAMES VALLEY LLP,2486120:3000008324160006,"36,320.02",Legal Aid Civil Representation
MoJ,LAA,14/09/22,Legal Aid Lower Crime,LEGAL AID FUND,RUSSELL COOKE LLP,2486035:160842803,"26,362.79",Legal Aid Lower Crime
MoJ,LAA,14/09/22,Legal Aid Higher Crime,LEGAL AID FUND,RUSTEM GUARDIAN SOLICITORS LTD,2487195:161453834,"89,571.37",Legal Aid Higher Crime
MoJ,LAA,14/09/22,Legal Aid Civil Representation,LEGAL AID FUND,SAMANTHA J BOWCOCK,2484316:3000006024020030,"47,098.97",Legal Aid Civil Representation
MoJ,LAA,14/09/22,Legal Aid Civil Representation,LEGAL AID FUND,SARA M LEWIS,2485465:3000012974900051,"30,326.40",Legal Aid Civil Representation
MoJ,LAA,14/09/22,Legal Aid Higher Crime,LEGAL AID FUND,SARAVANAKKUMAR VADIVELOO,2483804:161479056,"28,095.00",Legal Aid Higher Crime
MoJ,LAA,14/09/22,Legal Aid Higher Crime,LEGAL AID FUND,SEAN M SMITH,2486422:161466995,"95,760.00",Legal Aid Higher Crime
MoJ,LAA,14/09/22,Legal Aid Civil Representation,LEGAL AID FUND,SILLS & BETTERIDGE LLP,2484987:3000006967820027,"40,977.72",Legal Aid Civil Representation
MoJ,LAA,14/09/22,Legal Aid Higher Crime,LEGAL AID FUND,SIMON RUSSELL-FLINT QC,2487031:161502634,"122,280.00",Legal Aid Higher Crime
MoJ,LAA,14/09/22,Legal Aid Civil Representation,LEGAL AID FUND,SIMPSON MILLAR SOLICITORS LLP,2485748:3000007976710008,"27,667.86",Legal Aid Civil Representation
MoJ,LAA,14/09/22,Legal Aid Civil Representation,LEGAL AID FUND,SLATER BRADLEY & CO,2487480:3000007693190005,"38,089.72",Legal Aid Civil Representation
MoJ,LAA,14/09/22,Legal Aid Civil Representation,LEGAL AID FUND,SMITH PARTNERSHIP,2485841:3000006715670038,"38,846.33",Legal Aid Civil Representation
MoJ,LAA,14/09/22,Legal Aid Higher Crime,LEGAL AID FUND,SONN MACMILLAN WALKER LTD,2484705:161479327,"29,791.50",Legal Aid Higher Crime
MoJ,LAA,14/09/22,Legal Aid Higher Crime,LEGAL AID FUND,SONN MACMILLAN WALKER LTD,2484705:161504159,"59,956.49",Legal Aid Higher Crime
MoJ,LAA,14/09/22,Legal Aid Legal Help,LEGAL AID FUND,SOODS SOLICITORS,2485918:161468755,"34,634.27",Legal Aid Legal Help
MoJ,LAA,14/09/22,Legal Aid Civil Representation,LEGAL AID FUND,STERNBERG REED SOLICITORS,2484399:3000010390110017,"25,737.98",Legal Aid Civil Representation
MoJ,LAA,14/09/22,Legal Aid Civil Representation,LEGAL AID FUND,STRAW & PEARCE,2486389:3000006499770057,"27,838.17",Legal Aid Civil Representation
MoJ,LAA,14/09/22,Legal Aid Civil Representation,LEGAL AID FUND,SWITALSKI'S SOLICITORS LTD,2483825:3000006257190015,"25,954.30",Legal Aid Civil Representation
MoJ,LAA,14/09/22,Legal Aid Civil Representation,LEGAL AID FUND,SYMONS GAY & LELAND,2485909:3000007737510021,"28,875.91",Legal Aid Civil Representation
MoJ,LAA,14/09/22,Legal Aid Civil Representation,LEGAL AID FUND,TALBOTS LAW LTD,2483892:3000012746310012,"28,261.74",Legal Aid Civil Representation
MoJ,LAA,14/09/22,Legal Aid Civil Representation,LEGAL AID FUND,TAYLOR ROSE MW SOLICITORS,2485024:3000005608730053,"39,632.67",Legal Aid Civil Representation
MoJ,LAA,14/09/22,Legal Aid Civil Representation,LEGAL AID FUND,TAYNTONS INC ROWBIS,2486551:3000013832060035,"28,715.65",Legal Aid Civil Representation
MoJ,LAA,14/09/22,Legal Aid Civil Representation,LEGAL AID FUND,THE RINGROSE LAW,2484518:3000005767210053,"38,291.43",Legal Aid Civil Representation
MoJ,LAA,14/09/22,Legal Aid Higher Crime,LEGAL AID FUND,THE RINGROSE LAW,2484519:161479310,"34,830.65",Legal Aid Higher Crime
MoJ,LAA,14/09/22,Legal Aid Civil Representation,LEGAL AID FUND,THOMAS P WILSON,2486532:3000011127350016,"32,998.25",Legal Aid Civil Representation
MoJ,LAA,14/09/22,Legal Aid Higher Crime,LEGAL AID FUND,THOMAS PRICE QC,2487119:161459914,"80,360.00",Legal Aid Higher Crime
MoJ,LAA,14/09/22,Legal Aid Civil Representation,LEGAL AID FUND,THOMPSON & CO SOLICITORS LTD,2484350:3000013154000009,"25,559.75",Legal Aid Civil Representation
MoJ,LAA,14/09/22,Legal Aid Civil Representation,LEGAL AID FUND,THORNES LEGAL LTD,2487486:3000004994050088,"52,382.53",Legal Aid Civil Representation
MoJ,LAA,14/09/22,Legal Aid Civil Representation,LEGAL AID FUND,TINA G COOK QC,2484184:3000013961630021,"27,466.56",Legal Aid Civil Representation
MoJ,LAA,14/09/22,Legal Aid Civil Representation,LEGAL AID FUND,TOZERS LLP,2484515:3000006171060008,"45,998.46",Legal Aid Civil Representation
MoJ,LAA,14/09/22,Legal Aid Civil Representation,LEGAL AID FUND,TOZERS LLP,2484515:3000013272430001,"29,708.60",Legal Aid Civil Representation
MoJ,LAA,14/09/22,Legal Aid Civil Representation,LEGAL AID FUND,TRP SOLICITORS LTD,2487209:3000005580620019,"167,148.00",Legal Aid Civil Representation
MoJ,LAA,14/09/22,Legal Aid Civil Representation,LEGAL AID FUND,TRUEMANS SOLICITORS,2484693:3000008231590008,"42,031.94",Legal Aid Civil Representation
MoJ,LAA,14/09/22,Legal Aid Higher Crime,LEGAL AID FUND,TUCKERS SOLICITORS LLP,2486014:161479261,"75,555.43",Legal Aid Higher Crime
MoJ,LAA,14/09/22,Legal Aid Civil Representation,LEGAL AID FUND,VANESSA V MEACHIN QC,2485561:3000005703110030,"52,390.80",Legal Aid Civil Representation
MoJ,LAA,14/09/22,Legal Aid Civil Representation,LEGAL AID FUND,VENTERS SOLICITORS,2484352:3000005782380029,"34,931.17",Legal Aid Civil Representation
MoJ,LAA,14/09/22,Legal Aid Civil Representation,LEGAL AID FUND,VICTORIA CLIFFORD,2486916:3000004994050085,"30,523.15",Legal Aid Civil Representation
MoJ,LAA,14/09/22,Legal Aid Civil Representation,LEGAL AID FUND,W M B LAW LTD,2487341:3000006757220006,"38,894.80",Legal Aid Civil Representation
MoJ,LAA,14/09/22,Legal Aid Civil Representation,LEGAL AID FUND,WADDINGTON & SON,2484672:3000006024020029,"47,117.24",Legal Aid Civil Representation
MoJ,LAA,14/09/22,Legal Aid Higher Crime,LEGAL AID FUND,WALKERS SOLICITORS LIMITED,2485981:161459986,"47,863.44",Legal Aid Higher Crime
MoJ,LAA,14/09/22,Legal Aid Civil Representation,LEGAL AID FUND,WHISKERS LLP SOLICITORS & NOTARIES,2485864:3000006883750033,"37,458.67",Legal Aid Civil Representation
MoJ,LAA,14/09/22,Legal Aid Civil Representation,LEGAL AID FUND,WILKINSON WOODWARD.,2487288:3000010096110044,"37,328.38",Legal Aid Civil Representation
MoJ,LAA,14/09/22,Legal Aid Civil Representation,LEGAL AID FUND,WILLIAMS & CO,2484664:3000006205520023,"42,185.25",Legal Aid Civil Representation
MoJ,LAA,14/09/22,Legal Aid Civil Representation,LEGAL AID FUND,WILLIAMSONS SOLICITORS LTD,2487370:3000007866780012,"35,394.89",Legal Aid Civil Representation
MoJ,LAA,14/09/22,Legal Aid Civil Representation,LEGAL AID FUND,WILSONS SOLICITORS (UK) LTD,2483838:3000010787610001,"26,184.66",Legal Aid Civil Representation
MoJ,LAA,14/09/22,Legal Aid Civil Representation,LEGAL AID FUND,WMC LEGAL LLP,2485836:3000007178220058,"32,319.01",Legal Aid Civil Representation
MoJ,LAA,15/09/22,EXP - PURCHASE OF GOODS/SERVICES - OTHER - Translation / Interpreting Services,Central Funds,CLARION INTERPRETING LTD,67131,"73,974.86",Translation and interpreting services
MoJ,LAA,16/09/22,EXP - MISCELLANEOUS EXPENDITURE - Litigator,Central Funds,D LEWIS,M1172673/193657,"26,937.35",Legal services 
MoJ,LAA,16/09/22,EXP - PURCHASE OF GOODS/SERVICES - OFFICE RELATED - POSTAGE,Civil Case Management - Newcastle,DX NETWORK SERVICES LTD,83624408,"48,020.85",Postal services
MoJ,LAA,16/09/22,EXP - PURCHASE OF GOODS/SERVICES - OTHER - Central Funds - Other,Central Funds,EDMONDS MARSHALL MCMAHON,M1172444/193722,"27,558.68",Court costs
MoJ,LAA,16/09/22,EXP - RENTALS UNDER NON-PFI OPERATING LEASES - BUILDINGS,Property Costs - Liverpool,GOVERNMENT PROPERTY AGENCY,00000001/18519,"123,824.21",Property related charges
MoJ,LAA,16/09/22,EXP - RENTALS UNDER NON-PFI OPERATING LEASES - BUILDINGS,Property Costs - Birmingham,GOVERNMENT PROPERTY AGENCY,00000001/17213,"57,588.93",Property related charges
MoJ,LAA,16/09/22,EXP - PURCHASE OF GOODS/SERVICES - NON-PO INVOICES PENDING REALLOCATION,Property Costs - Liverpool,GOVERNMENT PROPERTY AGENCY,00000001/20245,"123,098.71",Property related charges
MoJ,LAA,20/09/22,EXP - PURCHASE OF GOODS/SERVICES - OTHER - Central Funds - Other,Central Funds,TAYLORS SOLICITORS,M1173107/193829,"44,095.08",Court costs
MoJ,LAA,21/09/22,Legal Aid Higher Crime,LEGAL AID FUND,ADAM LAW SOLICITORS LTD,2490460:161521899,"35,877.41",Legal Aid Higher Crime
MoJ,LAA,21/09/22,Legal Aid Civil Representation,LEGAL AID FUND,ALBIN & CO LTD,2490588:3000006541830015,"30,000.00",Legal Aid Civil Representation
MoJ,LAA,21/09/22,Legal Aid Civil Representation,LEGAL AID FUND,ALDERSON LAW LLP,2490584:3000005930810008,"27,910.38",Legal Aid Civil Representation
MoJ,LAA,21/09/22,Legal Aid Civil Representation,LEGAL AID FUND,ALEXANDER M H ASHWORTH,2489307:3000005443600028,"44,831.69",Legal Aid Civil Representation
MoJ,LAA,21/09/22,Legal Aid Civil Representation,LEGAL AID FUND,ALEXANDER VERDAN QC,2490777:3000005597110023,"50,770.80",Legal Aid Civil Representation
MoJ,LAA,21/09/22,Legal Aid Higher Crime,LEGAL AID FUND,ALTAF SOLICITORS LTD,2488633:161505050,"107,574.07",Legal Aid Higher Crime
MoJ,LAA,21/09/22,Legal Aid Higher Crime,LEGAL AID FUND,ALTAF SOLICITORS LTD,2488633:161514300,"55,671.68",Legal Aid Higher Crime
MoJ,LAA,21/09/22,Legal Aid Civil Representation,LEGAL AID FUND,AMANDA J MEUSZ,2488158:3000007744090029,"40,473.76",Legal Aid Civil Representation
MoJ,LAA,21/09/22,Legal Aid Civil Representation,LEGAL AID FUND,AMIN SOLICITORS,2491452:3000005617210014,"47,288.29",Legal Aid Civil Representation
MoJ,LAA,21/09/22,Legal Aid Civil Representation,LEGAL AID FUND,AMIN SOLICITORS,2491452:3000007238210031,"33,437.45",Legal Aid Civil Representation
MoJ,LAA,21/09/22,Legal Aid Civil Representation,LEGAL AID FUND,ANTHONY COLLINS LLP,2490191:3000010779290018,"28,394.16",Legal Aid Civil Representation
MoJ,LAA,21/09/22,Legal Aid Civil Representation,LEGAL AID FUND,ASKEWS LEGAL LLP,2489896:3000006672150009,"58,018.98",Legal Aid Civil Representation
MoJ,LAA,21/09/22,Legal Aid Civil Representation,LEGAL AID FUND,ATKINS HOPE SOLICITORS LTD,2491414:3000006626510020,"35,303.12",Legal Aid Civil Representation
MoJ,LAA,21/09/22,Legal Aid Civil Representation,LEGAL AID FUND,ATKINS HOPE SOLICITORS LTD,2491414:3000006629380021,"29,437.56",Legal Aid Civil Representation
MoJ,LAA,21/09/22,Legal Aid Civil Representation,LEGAL AID FUND,AVON & SOMERSET FAMILY LAW LLP,2489293:3000006668660032,"34,107.02",Legal Aid Civil Representation
MoJ,LAA,21/09/22,Legal Aid Higher Crime,LEGAL AID FUND,B H MOHAMMED,2488892:161545946,"27,378.19",Legal Aid Higher Crime
MoJ,LAA,21/09/22,Legal Aid Higher Crime,LEGAL AID FUND,BAL DHALIWAL SOLICITORS,2488738:161505852,"37,296.80",Legal Aid Higher Crime
MoJ,LAA,21/09/22,Legal Aid Civil Representation,LEGAL AID FUND,BARBARA W CONNOLLY QC,2489599:3000004780480019,"48,990.18",Legal Aid Civil Representation
MoJ,LAA,21/09/22,Legal Aid Civil Representation,LEGAL AID FUND,BARNES & PARTNERS,2491437:3000006012940021,"34,477.62",Legal Aid Civil Representation
MoJ,LAA,21/09/22,Legal Aid Civil Representation,LEGAL AID FUND,BELL LAMB & JOYNSON,2488707:3000008518940021,"26,845.98",Legal Aid Civil Representation
MoJ,LAA,21/09/22,Legal Aid Higher Crime,LEGAL AID FUND,BERRI'S LAW LLP,2490447:161514763,"89,975.11",Legal Aid Higher Crime
MoJ,LAA,21/09/22,Legal Aid Civil Representation,LEGAL AID FUND,BERRY REDMOND GORDON & PENNEY LLP,2490060:3000012540110008,"44,017.72",Legal Aid Civil Representation
MoJ,LAA,21/09/22,Legal Aid Civil Representation,LEGAL AID FUND,BG LAWYERS LLP,2491407:3000006428440012,"25,428.72",Legal Aid Civil Representation
MoJ,LAA,21/09/22,Legal Aid Civil Representation,LEGAL AID FUND,BISON SOLICITORS LTD,2490610:3000012518720006,"28,690.21",Legal Aid Civil Representation
MoJ,LAA,21/09/22,Legal Aid Higher Crime,LEGAL AID FUND,BLACKFORDS LLP,2491412:161516619,"112,758.13",Legal Aid Higher Crime
MoJ,LAA,21/09/22,Legal Aid Civil Representation,LEGAL AID FUND,BORNEO MARTELL TURNER COULSTON LLP,2490102:3000004780480020,"49,924.54",Legal Aid Civil Representation
MoJ,LAA,21/09/22,Legal Aid Civil Representation,LEGAL AID FUND,BRR LAW,2490115:3000005703280032,"25,550.66",Legal Aid Civil Representation
MoJ,LAA,21/09/22,Legal Aid Civil Representation,LEGAL AID FUND,CAROLYN BLAND,2488490:3000005889350019,"54,666.91",Legal Aid Civil Representation
MoJ,LAA,21/09/22,Legal Aid Higher Crime,LEGAL AID FUND,CARSON KAYE SOLICITORS,2488140:161546060,"56,537.08",Legal Aid Higher Crime
MoJ,LAA,21/09/22,Legal Aid Higher Crime,LEGAL AID FUND,CARSON KAYE SOLICITORS,2488140:161550929,"28,911.12",Legal Aid Higher Crime
MoJ,LAA,21/09/22,Legal Aid Civil Representation,LEGAL AID FUND,CASWELL JONES SOLICITORS,2490196:3000004703720014,"26,305.52",Legal Aid Civil Representation
MoJ,LAA,21/09/22,Legal Aid Higher Crime,LEGAL AID FUND,CHOPRA & GILL SOLICITORS,2490482:161514074,"39,020.78",Legal Aid Higher Crime
MoJ,LAA,21/09/22,Legal Aid Civil Representation,LEGAL AID FUND,CHRISTOPHER BUTTLER,2489579:3000013067820026,"27,441.60",Legal Aid Civil Representation
MoJ,LAA,21/09/22,Legal Aid Higher Crime,LEGAL AID FUND,CHURCHERS SOLICITORS LLP,2488644:161529632,"89,975.11",Legal Aid Higher Crime
MoJ,LAA,21/09/22,Legal Aid Higher Crime,LEGAL AID FUND,CLP SOLICITORS,2488713:161522877,"89,975.11",Legal Aid Higher Crime
MoJ,LAA,21/09/22,Legal Aid Civil Representation,LEGAL AID FUND,COLLINS SOLICITORS,2491156:3000009879720036,"50,635.77",Legal Aid Civil Representation
MoJ,LAA,21/09/22,Legal Aid Legal Help,LEGAL AID FUND,CORAM CHILDREN'S LEGAL CENTRE,2488636:161528094,"35,107.57",Legal Aid Legal Help
MoJ,LAA,21/09/22,Legal Aid Civil Representation,LEGAL AID FUND,COVENT GARDEN FAMILY LAW LTD,2489546:3000005714540031,"29,623.67",Legal Aid Civil Representation
MoJ,LAA,21/09/22,Legal Aid Civil Representation,LEGAL AID FUND,COVENT GARDEN FAMILY LAW LTD,2489546:3000006714640011,"29,569.59",Legal Aid Civil Representation
MoJ,LAA,21/09/22,Legal Aid Civil Representation,LEGAL AID FUND,CREIGHTON & PARTNERS SOLICITORS LTD,2489948:3000006743520006,"29,998.22",Legal Aid Civil Representation
MoJ,LAA,21/09/22,Legal Aid Civil Representation,LEGAL AID FUND,CREIGHTON & PARTNERS SOLICITORS LTD,2489948:3000006913600019,"29,925.70",Legal Aid Civil Representation
MoJ,LAA,21/09/22,Legal Aid Civil Representation,LEGAL AID FUND,DAMIAN WOODWARD-CARLTON QC,2488505:3000006077590025,"46,915.20",Legal Aid Civil Representation
MoJ,LAA,21/09/22,Legal Aid Civil Representation,LEGAL AID FUND,DANIEL M SHERIDAN,2490723:3000009879720035,"39,990.38",Legal Aid Civil Representation
MoJ,LAA,21/09/22,Legal Aid Higher Crime,LEGAL AID FUND,DAVID  MILLER,2489431:161524580,"58,453.33",Legal Aid Higher Crime
MoJ,LAA,21/09/22,Legal Aid Higher Crime,LEGAL AID FUND,DAVID A TRAYNOR,2488602:161505087,"25,446.00",Legal Aid Higher Crime
MoJ,LAA,21/09/22,Legal Aid Higher Crime,LEGAL AID FUND,DAVID CLAXTON,2489728:161524581,"58,453.33",Legal Aid Higher Crime
MoJ,LAA,21/09/22,Legal Aid Higher Crime,LEGAL AID FUND,DAVID S CALLAN,2491063:161530133,"33,690.00",Legal Aid Higher Crime
MoJ,LAA,21/09/22,Legal Aid Civil Representation,LEGAL AID FUND,DAVID WILSON SOLICITORS,2491284:3000006062600008,"26,355.20",Legal Aid Civil Representation
MoJ,LAA,21/09/22,Legal Aid Civil Representation,LEGAL AID FUND,DAVID WILSON SOLICITORS,2491284:3000006779210022,"50,391.41",Legal Aid Civil Representation
MoJ,LAA,21/09/22,Legal Aid Legal Help,LEGAL AID FUND,DIRECT HELP & ADVICE LTD,2489933:161547741,"39,744.08",Legal Aid Legal Help
MoJ,LAA,21/09/22,Legal Aid Civil Representation,LEGAL AID FUND,DUNCAN LEWIS SOLICITORS  LTD,2488703:3000007635190003,"29,801.16",Legal Aid Civil Representation
MoJ,LAA,21/09/22,Legal Aid Civil Representation,LEGAL AID FUND,ELIZABETH ISAACS QC,2491048:3000006262390002,"82,328.40",Legal Aid Civil Representation
MoJ,LAA,21/09/22,Legal Aid Civil Representation,LEGAL AID FUND,ENFIELD FAMILY LAW LTD,2489436:3000007802930006,"26,401.09",Legal Aid Civil Representation
MoJ,LAA,21/09/22,Legal Aid Legal Help,LEGAL AID FUND,EQUALITY & EMPLOYMENT LAW CENTRE LTD,2489946:161549415,"28,364.54",Legal Aid Legal Help
MoJ,LAA,21/09/22,Legal Aid Civil Representation,LEGAL AID FUND,ESKINAZI & CO,2490093:3000005597110021,"36,688.32",Legal Aid Civil Representation
MoJ,LAA,21/09/22,Legal Aid Civil Representation,LEGAL AID FUND,ESKINAZI & CO,2490093:3000006826060031,"28,855.15",Legal Aid Civil Representation
MoJ,LAA,21/09/22,Legal Aid Higher Crime,LEGAL AID FUND,FARADAYS SOLICITORS LTD,2488726:161513916,"26,901.64",Legal Aid Higher Crime
MoJ,LAA,21/09/22,Legal Aid Higher Crime,LEGAL AID FUND,FORESTERS SOLICITORS,2488669:161505104,"57,561.13",Legal Aid Higher Crime
MoJ,LAA,21/09/22,Legal Aid Civil Representation,LEGAL AID FUND,FRANCESCA P D WILEY QC,2488504:3000007822450024,"32,821.20",Legal Aid Civil Representation
MoJ,LAA,21/09/22,Legal Aid Civil Representation,LEGAL AID FUND,FRANCESCA P D WILEY QC,2488504:3000013432420010,"31,562.81",Legal Aid Civil Representation
MoJ,LAA,21/09/22,Legal Aid Civil Representation,LEGAL AID FUND,FREEMAN JOHNSON,2488800:3000013133380016,"33,487.01",Legal Aid Civil Representation
MoJ,LAA,21/09/22,Legal Aid Civil Representation,LEGAL AID FUND,G T STEWART LTD,2491107:3000006397210012,"27,708.71",Legal Aid Civil Representation
MoJ,LAA,21/09/22,Legal Aid Civil Representation,LEGAL AID FUND,GARFIELD Z BRAITHWAITE,2488496:3000009879720034,"28,209.60",Legal Aid Civil Representation
MoJ,LAA,21/09/22,Legal Aid Civil Representation,LEGAL AID FUND,GOODMAN RAY SOLICITORS LLP,2491137:3000007744090028,"48,545.74",Legal Aid Civil Representation
MoJ,LAA,21/09/22,Legal Aid Civil Representation,LEGAL AID FUND,HAINS & LEWIS LTD,2488918:3000006963150027,"43,220.20",Legal Aid Civil Representation
MoJ,LAA,21/09/22,Legal Aid Civil Representation,LEGAL AID FUND,HANNAYS SOLICITORS & ADVOCATES LTD,2491378:3000008324350015,"31,045.66",Legal Aid Civil Representation
MoJ,LAA,21/09/22,Legal Aid Higher Crime,LEGAL AID FUND,HARRIS SOLICITORS LTD,2489880:161529885,"25,353.64",Legal Aid Higher Crime
MoJ,LAA,21/09/22,Legal Aid Civil Representation,LEGAL AID FUND,HELEN FITZSIMONS FAMILY LAW,2489262:3000005443600027,"43,229.31",Legal Aid Civil Representation
MoJ,LAA,21/09/22,Legal Aid Civil Representation,LEGAL AID FUND,HEPBURN DELANEY,2491245:3000007697730026,"38,338.42",Legal Aid Civil Representation
MoJ,LAA,21/09/22,Legal Aid Civil Representation,LEGAL AID FUND,HEWITTS SOLICITORS,2488865:3000007886750002,"26,276.36",Legal Aid Civil Representation
MoJ,LAA,21/09/22,Legal Aid Higher Crime,LEGAL AID FUND,HIGHGATE SOLICITORS LTD,2488138:161514575,"25,600.39",Legal Aid Higher Crime
MoJ,LAA,21/09/22,Legal Aid Civil Representation,LEGAL AID FUND,HURLOWS FAMILY LAW PRACTICE SOLICITORS,2490195:3000008470710028,"28,630.70",Legal Aid Civil Representation
MoJ,LAA,21/09/22,Legal Aid Higher Crime,LEGAL AID FUND,HUSSAIN SOLICITORS LTD,2489873:161522664,"107,970.13",Legal Aid Higher Crime
MoJ,LAA,21/09/22,Legal Aid Higher Crime,LEGAL AID FUND,HUSSAIN SOLICITORS LTD,2490027:161514573,"61,028.87",Legal Aid Higher Crime
MoJ,LAA,21/09/22,Legal Aid Civil Representation,LEGAL AID FUND,I B B LAW LLP,2491138:3000006867850074,"28,748.66",Legal Aid Civil Representation
MoJ,LAA,21/09/22,Legal Aid Higher Crime,LEGAL AID FUND,JOHN G O'HIGGINS,2490757:161504970,"44,406.00",Legal Aid Higher Crime
MoJ,LAA,21/09/22,Legal Aid Civil Representation,LEGAL AID FUND,JULIA CHEETHAM,2488491:3000005889350021,"83,332.80",Legal Aid Civil Representation
MoJ,LAA,21/09/22,Legal Aid Civil Representation,LEGAL AID FUND,KATHRYN HUGHES,2488353:3000005672490047,"49,665.18",Legal Aid Civil Representation
MoJ,LAA,21/09/22,Legal Aid Civil Representation,LEGAL AID FUND,KATHRYN M KOROL,2488526:3000003482310026,"50,187.04",Legal Aid Civil Representation
MoJ,LAA,21/09/22,Legal Aid Civil Representation,LEGAL AID FUND,KENNETH BUSH LTD,2491218:3000006077590027,"56,519.00",Legal Aid Civil Representation
MoJ,LAA,21/09/22,Legal Aid Civil Representation,LEGAL AID FUND,KERSEYS SOLICITORS LLP,2491255:3000007246010020,"45,853.23",Legal Aid Civil Representation
MoJ,LAA,21/09/22,Legal Aid Higher Crime,LEGAL AID FUND,KHAN SOLICITORS LTD,2490059:161529819,"60,310.56",Legal Aid Higher Crime
MoJ,LAA,21/09/22,Legal Aid Higher Crime,LEGAL AID FUND,KIM TRELOAR,2488782:161522578,"28,826.70",Legal Aid Higher Crime
MoJ,LAA,21/09/22,Legal Aid Higher Crime,LEGAL AID FUND,KINGSMAN SOLICITORS LTD,2490502:161513741,"129,088.88",Legal Aid Higher Crime
MoJ,LAA,21/09/22,Legal Aid Higher Crime,LEGAL AID FUND,KINGSMAN SOLICITORS LTD,2490502:161522388,"89,975.11",Legal Aid Higher Crime
MoJ,LAA,21/09/22,Legal Aid Higher Crime,LEGAL AID FUND,L P EVANS SOLICITORS,2489898:161514012,"70,584.97",Legal Aid Higher Crime
MoJ,LAA,21/09/22,Legal Aid Higher Crime,LEGAL AID FUND,LEWIS NEDAS LAW LTD,2488931:161549050,"37,543.93",Legal Aid Higher Crime
MoJ,LAA,21/09/22,Legal Aid Higher Crime,LEGAL AID FUND,LLOYDS PR SOLICITORS,2488625:161505569,"29,664.55",Legal Aid Higher Crime
MoJ,LAA,21/09/22,Legal Aid Higher Crime,LEGAL AID FUND,LLOYDS PR SOLICITORS,2488625:161514753,"33,409.99",Legal Aid Higher Crime
MoJ,LAA,21/09/22,Legal Aid Civil Representation,LEGAL AID FUND,LOCKINGS SOLICITORS,2490088:3000009978730017,"27,902.90",Legal Aid Civil Representation
MoJ,LAA,21/09/22,Legal Aid Higher Crime,LEGAL AID FUND,LONDONIUM SOLICITORS,2490496:161505360,"89,975.11",Legal Aid Higher Crime
MoJ,LAA,21/09/22,Legal Aid Civil Representation,LEGAL AID FUND,LONGE & CO,2488649:3000007799830047,"30,579.46",Legal Aid Civil Representation
MoJ,LAA,21/09/22,Legal Aid Civil Representation,LEGAL AID FUND,LOUISE B A BROWNE,2489735:3000007771400014,"29,582.66",Legal Aid Civil Representation
MoJ,LAA,21/09/22,Legal Aid Civil Representation,LEGAL AID FUND,MACHINS SOLICITORS LLP,2490122:3000011253320017,"26,032.21",Legal Aid Civil Representation
MoJ,LAA,21/09/22,Legal Aid Civil Representation,LEGAL AID FUND,MALCOLM C FOY & CO LTD,2490097:3000005435910046,"37,673.46",Legal Aid Civil Representation
MoJ,LAA,21/09/22,Legal Aid Higher Crime,LEGAL AID FUND,MANN & CO SOLICITORS LTD,2488711:161513940,"129,088.88",Legal Aid Higher Crime
MoJ,LAA,21/09/22,Legal Aid Higher Crime,LEGAL AID FUND,MARK JONES & PARTNERS LTD,2488777:161529988,"60,310.56",Legal Aid Higher Crime
MoJ,LAA,21/09/22,Legal Aid Civil Representation,LEGAL AID FUND,MATISS J KRUMINS,2490515:3000014276960004,"25,804.80",Legal Aid Civil Representation
MoJ,LAA,21/09/22,Legal Aid Civil Representation,LEGAL AID FUND,MCALISTER FAMILY LAW LTD,2490403:3000005672490048,"55,787.98",Legal Aid Civil Representation
MoJ,LAA,21/09/22,Legal Aid Civil Representation,LEGAL AID FUND,MCALISTER FAMILY LAW LTD,2490403:3000008896710017,"34,393.40",Legal Aid Civil Representation
MoJ,LAA,21/09/22,Legal Aid Higher Crime,LEGAL AID FUND,MCQUEENS SOLICITORS LLP,2489901:161505904,"26,508.36",Legal Aid Higher Crime
MoJ,LAA,21/09/22,Legal Aid Civil Representation,LEGAL AID FUND,MIKA PINE,2489825:3000005229550021,"45,207.23",Legal Aid Civil Representation
MoJ,LAA,21/09/22,Legal Aid Civil Representation,LEGAL AID FUND,MONICA D P FORD,2489433:3000006743520005,"34,371.00",Legal Aid Civil Representation
MoJ,LAA,21/09/22,Legal Aid Civil Representation,LEGAL AID FUND,MORRISON SPOWART LTD,2488784:3000005447540031,"36,623.28",Legal Aid Civil Representation
MoJ,LAA,21/09/22,Legal Aid Civil Representation,LEGAL AID FUND,NASH & CO SOLICITORS LLP,2491400:3000011091710018,"28,249.14",Legal Aid Civil Representation
MoJ,LAA,21/09/22,Legal Aid Civil Representation,LEGAL AID FUND,PAUL CROWLEY & CO SOLICITORS LTD,2490670:3000005683790013,"40,277.25",Legal Aid Civil Representation
MoJ,LAA,21/09/22,Legal Aid Civil Representation,LEGAL AID FUND,PAUL CROWLEY & CO SOLICITORS LTD,2490670:3000006658210007,"83,869.46",Legal Aid Civil Representation
MoJ,LAA,21/09/22,Legal Aid Civil Representation,LEGAL AID FUND,PENELOPE A M HOWE,2489622:3000005673020051,"28,848.96",Legal Aid Civil Representation
MoJ,LAA,21/09/22,Legal Aid Civil Representation,LEGAL AID FUND,PENMANS SOLICITORS LLP,2488980:3000005703110035,"46,567.73",Legal Aid Civil Representation
MoJ,LAA,21/09/22,Legal Aid Higher Crime,LEGAL AID FUND,PETER J KILLEN,2489325:161510965,"31,960.00",Legal Aid Higher Crime
MoJ,LAA,21/09/22,Legal Aid Civil Representation,LEGAL AID FUND,PORTER DODSON,2488956:3000008913110022,"33,880.54",Legal Aid Civil Representation
MoJ,LAA,21/09/22,Legal Aid Civil Representation,LEGAL AID FUND,PS LAW LLP,2490720:3000011275160023,"25,230.20",Legal Aid Civil Representation
MoJ,LAA,21/09/22,Legal Aid Civil Representation,LEGAL AID FUND,R P ROBINSON,2490057:3000006768470017,"28,340.99",Legal Aid Civil Representation
MoJ,LAA,21/09/22,Legal Aid Civil Representation,LEGAL AID FUND,RACHEL A LANGDALE QC,2489592:3000014136550015,"26,428.34",Legal Aid Civil Representation
MoJ,LAA,21/09/22,Legal Aid Higher Crime,LEGAL AID FUND,RICHARD J DAVIES,2487957:161517813,"49,920.00",Legal Aid Higher Crime
MoJ,LAA,21/09/22,Legal Aid Civil Representation,LEGAL AID FUND,RICHARD L AGER,2489630:3000005617210013,"42,998.88",Legal Aid Civil Representation
MoJ,LAA,21/09/22,Legal Aid Civil Representation,LEGAL AID FUND,ROBERT LITTLEWOOD,2489415:3000007697730028,"50,226.88",Legal Aid Civil Representation
MoJ,LAA,21/09/22,Legal Aid Civil Representation,LEGAL AID FUND,ROLAND ROBINSONS AND FENTONS LLP,2490220:3000005889350020,"55,710.76",Legal Aid Civil Representation
MoJ,LAA,21/09/22,Legal Aid Civil Representation,LEGAL AID FUND,RUTH S M HENKE QC,2488419:3000006129650011,"29,062.80",Legal Aid Civil Representation
MoJ,LAA,21/09/22,Legal Aid Civil Representation,LEGAL AID FUND,RWK GOODMAN LLP,2488957:3000011173720019,"30,226.86",Legal Aid Civil Representation
MoJ,LAA,21/09/22,Legal Aid Civil Representation,LEGAL AID FUND,RWK GOODMAN LLP,2488958:3000009642710012,"45,049.18",Legal Aid Civil Representation
MoJ,LAA,21/09/22,Legal Aid Civil Representation,LEGAL AID FUND,SALLY C BRADLEY,2490792:3000005597110020,"41,275.00",Legal Aid Civil Representation
MoJ,LAA,21/09/22,Legal Aid Civil Representation,LEGAL AID FUND,SALLY VICTORIA STONE QC,2488468:3000011519000033,"44,161.20",Legal Aid Civil Representation
MoJ,LAA,21/09/22,Legal Aid Civil Representation,LEGAL AID FUND,SAM MOMTAZ QC,2488198:3000009927510013,"49,896.00",Legal Aid Civil Representation
MoJ,LAA,21/09/22,Legal Aid Legal Help,LEGAL AID FUND,SEN SUPPORT SOLICITORS,2487813:161548236,"86,193.31",Legal Aid Legal Help
MoJ,LAA,21/09/22,Legal Aid Higher Crime,LEGAL AID FUND,SHAW GRAHAM KERSH,2488717:161546066,"28,839.25",Legal Aid Higher Crime
MoJ,LAA,21/09/22,Legal Aid Civil Representation,LEGAL AID FUND,SIMPSON MILLAR SOLICITORS LLP,2489839:3000010751620007,"27,306.56",Legal Aid Civil Representation
MoJ,LAA,21/09/22,Legal Aid Legal Help,LEGAL AID FUND,SIMPSON MILLAR SOLICITORS LLP,2489840:161549486,"33,442.34",Legal Aid Legal Help
MoJ,LAA,21/09/22,Legal Aid Civil Representation,LEGAL AID FUND,STEPHEN D ABBERLEY,2489655:3000005703110034,"39,967.36",Legal Aid Civil Representation
MoJ,LAA,21/09/22,Legal Aid Higher Crime,LEGAL AID FUND,STEPHEN MOORE & CO,2491144:161522795,"61,444.58",Legal Aid Higher Crime
MoJ,LAA,21/09/22,Legal Aid Legal Help,LEGAL AID FUND,STEPHENSONS SOLICITORS LLP,2490208:161528165,"36,027.00",Legal Aid Legal Help
MoJ,LAA,21/09/22,Legal Aid Civil Representation,LEGAL AID FUND,STEVEN J HOWARD,2491018:3000005988100044,"28,171.25",Legal Aid Civil Representation
MoJ,LAA,21/09/22,Legal Aid Civil Representation,LEGAL AID FUND,SUSAN A SHACKLEFORD,2489705:3000006077590024,"40,694.40",Legal Aid Civil Representation
MoJ,LAA,21/09/22,Legal Aid Civil Representation,LEGAL AID FUND,SUSANNAH JONES,2491002:3000010282910030,"34,841.23",Legal Aid Civil Representation
MoJ,LAA,21/09/22,Legal Aid Higher Crime,LEGAL AID FUND,TASMIN S MALCOLM,2488057:161520969,"33,280.00",Legal Aid Higher Crime
MoJ,LAA,21/09/22,Legal Aid Civil Representation,LEGAL AID FUND,TOZERS LLP,2490072:3000007012400013,"31,714.23",Legal Aid Civil Representation
MoJ,LAA,21/09/22,Legal Aid Higher Crime,LEGAL AID FUND,TUCKERS SOLICITORS LLP,2491362:161522576,"42,372.06",Legal Aid Higher Crime
MoJ,LAA,21/09/22,Legal Aid Higher Crime,LEGAL AID FUND,TYLER HOFFMAN LTD,2489351:161513946,"82,945.06",Legal Aid Higher Crime
MoJ,LAA,21/09/22,Legal Aid Higher Crime,LEGAL AID FUND,UK LAW SOLICITORS LTD,2489893:161529640,"89,975.11",Legal Aid Higher Crime
MoJ,LAA,21/09/22,Legal Aid Higher Crime,LEGAL AID FUND,VICKERS & CO,2491303:161514198,"43,797.39",Legal Aid Higher Crime
MoJ,LAA,21/09/22,Legal Aid Higher Crime,LEGAL AID FUND,VIENNA KANG ADVOCATES LTD,2490475:161514220,"81,272.04",Legal Aid Higher Crime
MoJ,LAA,21/09/22,Legal Aid Higher Crime,LEGAL AID FUND,VIENNA KANG ADVOCATES LTD,2490475:161529809,"32,463.23",Legal Aid Higher Crime
MoJ,LAA,21/09/22,Legal Aid Civil Representation,LEGAL AID FUND,WADDINGTON & SON,2491354:3000003482310024,"44,528.87",Legal Aid Civil Representation
MoJ,LAA,21/09/22,Legal Aid Civil Representation,LEGAL AID FUND,WADDINGTON & SON,2491354:3000005933480021,"29,325.51",Legal Aid Civil Representation
MoJ,LAA,21/09/22,Legal Aid Legal Help,LEGAL AID FUND,WATSON WOODHOUSE LTD,2490282:161528166,"43,238.93",Legal Aid Legal Help
MoJ,LAA,21/09/22,Legal Aid Lower Crime,LEGAL AID FUND,WATSON WOODHOUSE LTD,2491376:161511112,"26,120.86",Legal Aid Lower Crime
MoJ,LAA,22/09/22,EXP - PURCHASE OF GOODS/SERVICES - OFFICE RELATED - Reprographics,Centralised Costs,CORPORATE DOCUMENT SERVICES LTD,272825,"65,165.40",Reprographics and printing services
MoJ,LAA,22/09/22,EXP - PURCHASE OF GOODS/SERVICES - OTHER - Enforcement and Debt Collection,Case Mgmt Strategy & Planning,MARSTON HOLDINGS LTD,00043598,"92,834.19",Professional services
MoJ,LAA,26/09/22,EXP - PURCHASE OF GOODS/SERVICES - OTHER - Central Funds - Other,Central Funds,ADDLESHAW GODDARD,M1172863/194129,"94,045.14",Court costs
MoJ,LAA,26/09/22,EXP - RENTALS UNDER NON-PFI OPERATING LEASES - BUILDINGS,Property Costs - Nottingham,GOVERNMENT PROPERTY AGENCY,00000001/16472,"29,835.42",Property related charges
MoJ,LAA,26/09/22,EXP - RENTALS UNDER NON-PFI OPERATING LEASES - BUILDINGS,Property Costs - Birmingham,GOVERNMENT PROPERTY AGENCY,00000001/19305,"67,865.86",Property related charges
MoJ,LAA,28/09/22,Legal Aid Legal Help,LEGAL AID FUND,ABBOTSTONE LAW LLP,2493823:161595101,"57,505.21",Legal Aid Legal Help
MoJ,LAA,28/09/22,Legal Aid Legal Help,LEGAL AID FUND,ABBOTTS MARTIN,2493507:161595211,"26,521.69",Legal Aid Legal Help
MoJ,LAA,28/09/22,Legal Aid Lower Crime,LEGAL AID FUND,ABR SOLICITORS,2494570:161594901,"64,605.46",Legal Aid Lower Crime
MoJ,LAA,28/09/22,Legal Aid Higher Crime,LEGAL AID FUND,ABRAHAM SOLICITORS LTD,2492902:161559896,"78,403.73",Legal Aid Higher Crime
MoJ,LAA,28/09/22,Legal Aid Higher Crime,LEGAL AID FUND,ABV SOLICITORS,2496127:161568292,"55,967.04",Legal Aid Higher Crime
MoJ,LAA,28/09/22,Legal Aid Lower Crime,LEGAL AID FUND,ABV SOLICITORS,2496127:161595352,"59,400.00",Legal Aid Lower Crime
MoJ,LAA,28/09/22,Legal Aid Lower Crime,LEGAL AID FUND,ACA LAW LTD,2492984:161594737,"27,268.95",Legal Aid Lower Crime
MoJ,LAA,28/09/22,Legal Aid Civil Representation,LEGAL AID FUND,AFG LAW LIMITED,2492203:3000011629940022,"30,156.25",Legal Aid Civil Representation
MoJ,LAA,28/09/22,Legal Aid Legal Help,LEGAL AID FUND,AJM SOLICITORS,2491971:161595246,"55,233.36",Legal Aid Legal Help
MoJ,LAA,28/09/22,Legal Aid Lower Crime,LEGAL AID FUND,ALBIN & CO LTD,2493785:161596050,"38,520.72",Legal Aid Lower Crime
MoJ,LAA,28/09/22,Legal Aid Higher Crime,LEGAL AID FUND,ALBIN & CO LTD,2496114:161569286,"89,630.30",Legal Aid Higher Crime
MoJ,LAA,28/09/22,Legal Aid Lower Crime,LEGAL AID FUND,ALBIN & CO LTD,2496114:161595527,"27,108.73",Legal Aid Lower Crime
MoJ,LAA,28/09/22,Legal Aid Lower Crime,LEGAL AID FUND,ALEXANDER BENNETT,2493683:161596047,"46,049.96",Legal Aid Lower Crime
MoJ,LAA,28/09/22,Legal Aid Higher Crime,LEGAL AID FUND,ALEXANDER COUSINS LTD,2494495:161569615,"26,893.52",Legal Aid Higher Crime
MoJ,LAA,28/09/22,Legal Aid Higher Crime,LEGAL AID FUND,ALEXANDER J ROSE,2495692:161605871,"65,520.00",Legal Aid Higher Crime
MoJ,LAA,28/09/22,Legal Aid Lower Crime,LEGAL AID FUND,ALLEN HOOLE LTD,2495958:161595470,"30,700.00",Legal Aid Lower Crime
MoJ,LAA,28/09/22,Legal Aid Lower Crime,LEGAL AID FUND,ALLEN HOOLE LTD,2496270:161595466,"49,400.00",Legal Aid Lower Crime
MoJ,LAA,28/09/22,Legal Aid Higher Crime,LEGAL AID FUND,ALTAF SOLICITORS LTD,2494431:161568859,"51,902.39",Legal Aid Higher Crime
MoJ,LAA,28/09/22,Legal Aid Legal Help,LEGAL AID FUND,AMAN SOLICITORS ADVOCATES(LONDON) LTD,2492876:161594326,"54,871.40",Legal Aid Legal Help
MoJ,LAA,28/09/22,Legal Aid Higher Crime,LEGAL AID FUND,ANURAG MOHINDRU,2495586:161557917,"76,160.00",Legal Aid Higher Crime
MoJ,LAA,28/09/22,Legal Aid Legal Help,LEGAL AID FUND,APPLEMAN LEGAL,2495299:161595104,"71,016.05",Legal Aid Legal Help
MoJ,LAA,28/09/22,Legal Aid Lower Crime,LEGAL AID FUND,ARIF & CO SOLICITORS LTD,2491727:161596106,"27,092.47",Legal Aid Lower Crime
MoJ,LAA,28/09/22,Legal Aid Higher Crime,LEGAL AID FUND,ASGHAR & CO SOLICITORS LTD,2496463:161560413,"47,533.88",Legal Aid Higher Crime
MoJ,LAA,28/09/22,Legal Aid Lower Crime,LEGAL AID FUND,ASGHAR & CO SOLICITORS LTD,2496463:161594778,"40,223.02",Legal Aid Lower Crime
MoJ,LAA,28/09/22,Legal Aid Higher Crime,LEGAL AID FUND,ASHMANS SOLICITORS LTD,2495276:161600756,"30,818.64",Legal Aid Higher Crime
MoJ,LAA,28/09/22,Legal Aid Higher Crime,LEGAL AID FUND,AWH LEGAL LTD,2493137:161569151,"50,315.20",Legal Aid Higher Crime
MoJ,LAA,28/09/22,Legal Aid Civil Representation,LEGAL AID FUND,B K ROCHE,2494080:3000006731120048,"33,674.18",Legal Aid Civil Representation
MoJ,LAA,28/09/22,Legal Aid Civil Representation,LEGAL AID FUND,B K ROCHE,2494080:3000011239710025,"39,170.16",Legal Aid Civil Representation
MoJ,LAA,28/09/22,Legal Aid Legal Help,LEGAL AID FUND,BAA SOLICITORS,2495085:161595251,"32,334.32",Legal Aid Legal Help
MoJ,LAA,28/09/22,Legal Aid Lower Crime,LEGAL AID FUND,BAILEY NICHOLSON GRAYSON,2496175:161595341,"70,000.00",Legal Aid Lower Crime
MoJ,LAA,28/09/22,Legal Aid Lower Crime,LEGAL AID FUND,BAINS SOLICITORS,2496174:161594599,"26,717.40",Legal Aid Lower Crime
MoJ,LAA,28/09/22,Legal Aid Lower Crime,LEGAL AID FUND,BAKERS SOLICITORS.,2493007:161595321,"33,100.00",Legal Aid Lower Crime
MoJ,LAA,28/09/22,Legal Aid Civil Representation,LEGAL AID FUND,BAKERS SOLICITORS.,2493007:3000007390050010,"54,670.57",Legal Aid Civil Representation
MoJ,LAA,28/09/22,Legal Aid Lower Crime,LEGAL AID FUND,BAL DHALIWAL SOLICITORS,2496205:161594675,"38,602.80",Legal Aid Lower Crime
MoJ,LAA,28/09/22,Legal Aid Legal Help,LEGAL AID FUND,BARNES HARRILD & DYER,2494839:161594323,"99,819.82",Legal Aid Legal Help
MoJ,LAA,28/09/22,Legal Aid Legal Help,LEGAL AID FUND,BARNES HARRILD & DYER,2495411:161595016,"38,811.60",Legal Aid Legal Help
MoJ,LAA,28/09/22,Legal Aid Lower Crime,LEGAL AID FUND,BARRICELLA HUGHES MARCHANT,2492864:161594657,"25,677.96",Legal Aid Lower Crime
MoJ,LAA,28/09/22,Legal Aid Civil Representation,LEGAL AID FUND,BATES WELLS & BRAITHWAITE,2494668:3000005229550022,"47,498.71",Legal Aid Civil Representation
MoJ,LAA,28/09/22,Legal Aid Legal Help,LEGAL AID FUND,BATLEY LAW LTD,2493503:161595201,"36,388.11",Legal Aid Legal Help
MoJ,LAA,28/09/22,Legal Aid Civil Representation,LEGAL AID FUND,BATTENS LTD,2496499:3000006520900032,"41,668.92",Legal Aid Civil Representation
MoJ,LAA,28/09/22,Legal Aid Higher Crime,LEGAL AID FUND,BDH SOLICITORS LTD,2493189:161552150,"89,975.11",Legal Aid Higher Crime
MoJ,LAA,28/09/22,Legal Aid Civil Representation,LEGAL AID FUND,BEECHAM PEACOCK SOLICITORS,2493153:3000008336330049,"30,865.89",Legal Aid Civil Representation
MoJ,LAA,28/09/22,Legal Aid Lower Crime,LEGAL AID FUND,BELMORES SOLICITORS LTD,2492928:161594647,"41,747.96",Legal Aid Lower Crime
MoJ,LAA,28/09/22,Legal Aid Civil Representation,LEGAL AID FUND,BEVIRS,2496458:3000006687610010,"32,481.92",Legal Aid Civil Representation
MoJ,LAA,28/09/22,Legal Aid Lower Crime,LEGAL AID FUND,BHATIA BEST LTD,2496309:161595317,"26,500.00",Legal Aid Lower Crime
MoJ,LAA,28/09/22,Legal Aid Legal Help,LEGAL AID FUND,BHATIA BEST LTD,2496311:161594436,"28,176.25",Legal Aid Legal Help
MoJ,LAA,28/09/22,Legal Aid Lower Crime,LEGAL AID FUND,BHATIA BEST LTD,2496311:161595314,"48,500.00",Legal Aid Lower Crime
MoJ,LAA,28/09/22,Legal Aid Lower Crime,LEGAL AID FUND,BIRDS SOLICITORS LTD,2496051:161595346,"172,800.00",Legal Aid Lower Crime
MoJ,LAA,28/09/22,Legal Aid Lower Crime,LEGAL AID FUND,BISHOP & LIGHT SOLICITORS LTD,2495964:161595506,"25,135.34",Legal Aid Lower Crime
MoJ,LAA,28/09/22,Legal Aid Legal Help,LEGAL AID FUND,BISON SOLICITORS LTD,2491986:161595159,"49,029.57",Legal Aid Legal Help
MoJ,LAA,28/09/22,Legal Aid Legal Help,LEGAL AID FUND,BISON SOLICITORS LTD,2491987:161595158,"85,852.74",Legal Aid Legal Help
MoJ,LAA,28/09/22,Legal Aid Legal Help,LEGAL AID FUND,BISON SOLICITORS LTD,2493827:161573738,"99,000.00",Legal Aid Legal Help
MoJ,LAA,28/09/22,Legal Aid Legal Help,LEGAL AID FUND,BISON SOLICITORS LTD,2493827:161573739,"35,881.26",Legal Aid Legal Help
MoJ,LAA,28/09/22,Legal Aid Civil Representation,LEGAL AID FUND,BLACKETT HART & PRATT LLP,2494715:3000010600130015,"27,467.84",Legal Aid Civil Representation
MoJ,LAA,28/09/22,Legal Aid Lower Crime,LEGAL AID FUND,BLACKFORDS LLP,2496510:161594704,"27,444.77",Legal Aid Lower Crime
MoJ,LAA,28/09/22,Legal Aid Higher Crime,LEGAL AID FUND,BLACKWELLS SOLICITORS LIMITED,2496069:161569507,"89,975.11",Legal Aid Higher Crime
MoJ,LAA,28/09/22,Legal Aid Lower Crime,LEGAL AID FUND,BLACKWELLS SOLICITORS LIMITED,2496069:161595405,"29,700.00",Legal Aid Lower Crime
MoJ,LAA,28/09/22,Legal Aid Civil Representation,LEGAL AID FUND,BLASER MILLS LLP,2496483:3000012652110013,"25,197.74",Legal Aid Civil Representation
MoJ,LAA,28/09/22,Legal Aid Higher Crime,LEGAL AID FUND,BMS SOLICITORS,2495263:161560739,"48,260.05",Legal Aid Higher Crime
MoJ,LAA,28/09/22,Legal Aid Lower Crime,LEGAL AID FUND,BOND JOSEPH,2494587:161594992,"43,287.52",Legal Aid Lower Crime
MoJ,LAA,28/09/22,Legal Aid Lower Crime,LEGAL AID FUND,BRADY EASTWOOD PIERCE & STEWART,2496464:161594749,"27,559.12",Legal Aid Lower Crime
MoJ,LAA,28/09/22,Legal Aid Legal Help,LEGAL AID FUND,BRAITCH SOLICITORS (RB SOLICITORS),2492882:161594117,"30,485.85",Legal Aid Legal Help
MoJ,LAA,28/09/22,Legal Aid Higher Crime,LEGAL AID FUND,BRENDAN D KELLY,2492584:161593502,"91,399.99",Legal Aid Higher Crime
MoJ,LAA,28/09/22,Legal Aid Lower Crime,LEGAL AID FUND,BREYDONS SOLICITORS LTD,2491817:161596083,"30,671.23",Legal Aid Lower Crime
MoJ,LAA,28/09/22,Legal Aid Lower Crime,LEGAL AID FUND,BREYDONS SOLICITORS LTD,2495385:161595689,"26,943.99",Legal Aid Lower Crime
MoJ,LAA,28/09/22,Legal Aid Civil Representation,LEGAL AID FUND,BRIGHOUSE WOLFF,2496342:3000008292390045,"31,708.14",Legal Aid Civil Representation
MoJ,LAA,28/09/22,Legal Aid Legal Help,LEGAL AID FUND,BURKE NIAZI  LTD,2496394:161594047,"40,000.00",Legal Aid Legal Help
MoJ,LAA,28/09/22,Legal Aid Legal Help,LEGAL AID FUND,BURKE NIAZI  LTD,2496394:161606016,"25,357.32",Legal Aid Legal Help
MoJ,LAA,28/09/22,Legal Aid Legal Help,LEGAL AID FUND,BURTON & BURTON SOLICITOR LTD,2493508:161595200,"41,508.90",Legal Aid Legal Help
MoJ,LAA,28/09/22,Legal Aid Legal Help,LEGAL AID FUND,BURTON & BURTON SOLICITOR LTD,2494401:161593967,"34,347.42",Legal Aid Legal Help
MoJ,LAA,28/09/22,Legal Aid Lower Crime,LEGAL AID FUND,BURTON COPELAND LLP,2494678:161594974,"57,928.52",Legal Aid Lower Crime
MoJ,LAA,28/09/22,Legal Aid Civil Representation,LEGAL AID FUND,CAROLINE LEGGEAT,2495038:3000005025340007,"33,895.80",Legal Aid Civil Representation
MoJ,LAA,28/09/22,Legal Aid Lower Crime,LEGAL AID FUND,CARR & CO,2494778:161595404,"42,300.00",Legal Aid Lower Crime
MoJ,LAA,28/09/22,Legal Aid Lower Crime,LEGAL AID FUND,CARRINGTONS SOLICITORS,2492870:161594605,"197,795.09",Legal Aid Lower Crime
MoJ,LAA,28/09/22,Legal Aid Higher Crime,LEGAL AID FUND,CARSON KAYE SOLICITORS,2492184:161601709,"27,866.76",Legal Aid Higher Crime
MoJ,LAA,28/09/22,Legal Aid Higher Crime,LEGAL AID FUND,CARTER OSBORNE LTD,2493109:161569016,"89,975.11",Legal Aid Higher Crime
MoJ,LAA,28/09/22,Legal Aid Lower Crime,LEGAL AID FUND,CARTER OSBORNE LTD,2493109:161594600,"107,033.70",Legal Aid Lower Crime
MoJ,LAA,28/09/22,Legal Aid Legal Help,LEGAL AID FUND,CARTWRIGHT KING LTD,2494556:161594460,"47,156.34",Legal Aid Legal Help
MoJ,LAA,28/09/22,Legal Aid Civil Representation,LEGAL AID FUND,CATHERINE L HEYWORTH,2492617:3000014407200009,"28,800.00",Legal Aid Civil Representation
MoJ,LAA,28/09/22,Legal Aid Legal Help,LEGAL AID FUND,CB LEGAL ADVISORY LTD T/A CB SOLICITORS,2491914:161595149,"37,599.67",Legal Aid Legal Help
MoJ,LAA,28/09/22,Legal Aid Lower Crime,LEGAL AID FUND,CCW SOLICITORS,2492830:161595690,"28,288.95",Legal Aid Lower Crime
MoJ,LAA,28/09/22,Legal Aid Higher Crime,LEGAL AID FUND,CHARLES STRACHAN SOLICITORS LTD,2494430:161551910,"83,810.40",Legal Aid Higher Crime
MoJ,LAA,28/09/22,Legal Aid Civil Representation,LEGAL AID FUND,CHARLOTTE F PITTS,2494061:3000003130360023,"108,530.62",Legal Aid Civil Representation
MoJ,LAA,28/09/22,Legal Aid Civil Representation,LEGAL AID FUND,CHARLOTTE F PITTS,2494061:3000013915030025,"30,792.96",Legal Aid Civil Representation
MoJ,LAA,28/09/22,Legal Aid Civil Representation,LEGAL AID FUND,CHLOE WILKINS,2492578:3000006599610026,"28,461.94",Legal Aid Civil Representation
MoJ,LAA,28/09/22,Legal Aid Lower Crime,LEGAL AID FUND,CHRISTOB SOLICITORS,2492146:161595842,"29,558.36",Legal Aid Lower Crime
MoJ,LAA,28/09/22,Legal Aid Civil Representation,LEGAL AID FUND,CHRISTOPHER GODFREY,2494077:3000006520900031,"42,376.26",Legal Aid Civil Representation
MoJ,LAA,28/09/22,Legal Aid Lower Crime,LEGAL AID FUND,CHURCHERS SOLICITORS LLP,2494454:161595515,"43,818.47",Legal Aid Lower Crime
MoJ,LAA,28/09/22,Legal Aid Lower Crime,LEGAL AID FUND,CJH SOLICITORS,2496165:161595328,"28,500.00",Legal Aid Lower Crime
MoJ,LAA,28/09/22,Legal Aid Legal Help,LEGAL AID FUND,CK SOLICITORS,2494541:161594331,"34,060.37",Legal Aid Legal Help
MoJ,LAA,28/09/22,Legal Aid Civil Representation,LEGAL AID FUND,CLAIRE WILLIAMS,2492614:3000007817310030,"29,332.80",Legal Aid Civil Representation
MoJ,LAA,28/09/22,Legal Aid Lower Crime,LEGAL AID FUND,CLARKE KIERNAN LLP,2492978:161594985,"29,350.72",Legal Aid Lower Crime
MoJ,LAA,28/09/22,Legal Aid Higher Crime,LEGAL AID FUND,CLEA R TOPOLSKI,2492029:161593161,"38,480.00",Legal Aid Higher Crime
MoJ,LAA,28/09/22,Legal Aid Higher Crime,LEGAL AID FUND,CLIFFORD JOHNSTON & CO,2494676:161579427,"29,664.55",Legal Aid Higher Crime
MoJ,LAA,28/09/22,Legal Aid Civil Representation,LEGAL AID FUND,CMHT SOLICITORS LLP,2494845:3000002449420024,"41,996.16",Legal Aid Civil Representation
MoJ,LAA,28/09/22,Legal Aid Civil Representation,LEGAL AID FUND,CMHT SOLICITORS LLP,2494845:3000003190100056,"63,494.69",Legal Aid Civil Representation
MoJ,LAA,28/09/22,Legal Aid Lower Crime,LEGAL AID FUND,COBAINS SOLICITORS,2492952:161595433,"26,500.00",Legal Aid Lower Crime
MoJ,LAA,28/09/22,Legal Aid Lower Crime,LEGAL AID FUND,COBLEYS SOLICITORS LTD,2492986:161594811,"30,065.95",Legal Aid Lower Crime
MoJ,LAA,28/09/22,Legal Aid Civil Representation,LEGAL AID FUND,COMPASS RESOLUTION LTD,2495429:161596130,"30,598.80",Legal Aid Civil Representation
MoJ,LAA,28/09/22,Legal Aid Legal Help,LEGAL AID FUND,CONFREYS,2493273:161594221,"26,715.42",Legal Aid Legal Help
MoJ,LAA,28/09/22,Legal Aid Lower Crime,LEGAL AID FUND,CONNOR ROSS-BROWN SOLICITORS,2492294:161594526,"35,000.00",Legal Aid Lower Crime
MoJ,LAA,28/09/22,Legal Aid Legal Help,LEGAL AID FUND,CONROYS SOLICITORS LLP,2494423:161594024,"33,700.00",Legal Aid Legal Help
MoJ,LAA,28/09/22,Legal Aid Lower Crime,LEGAL AID FUND,COOMBER RICH LTD,2494641:161595455,"57,800.00",Legal Aid Lower Crime
MoJ,LAA,28/09/22,Legal Aid Lower Crime,LEGAL AID FUND,COX BURLEY SOLICITORS,2494491:161595535,"28,109.27",Legal Aid Lower Crime
MoJ,LAA,28/09/22,Legal Aid Lower Crime,LEGAL AID FUND,CREDENCE LAW GROUP,2495269:161595977,"29,281.15",Legal Aid Lower Crime
MoJ,LAA,28/09/22,Legal Aid Lower Crime,LEGAL AID FUND,CRIMINAL DEFENCE ASSOCIATES LTD,2492866:161595331,"26,000.00",Legal Aid Lower Crime
MoJ,LAA,28/09/22,Legal Aid Lower Crime,LEGAL AID FUND,CRIMINAL DEFENCE MILTON KEYNES LTD,2496044:161595452,"54,600.00",Legal Aid Lower Crime
MoJ,LAA,28/09/22,Legal Aid Lower Crime,LEGAL AID FUND,CRIMINAL DEFENCE SOLICITORS,2492857:161595365,"34,400.00",Legal Aid Lower Crime
MoJ,LAA,28/09/22,Legal Aid Civil Representation,LEGAL AID FUND,CROCKETT LIMITED TA CROCKETT & CO SOLICITORS,2494762:3000006466480030,"31,659.52",Legal Aid Civil Representation
MoJ,LAA,28/09/22,Legal Aid Lower Crime,LEGAL AID FUND,CROWE HUMBLE WESENCRAFT,2492968:161594847,"41,330.70",Legal Aid Lower Crime
MoJ,LAA,28/09/22,Legal Aid Civil Representation,LEGAL AID FUND,CURLING MOORE SOLICITORS & ADVOCATES,2491995:3000010755510008,"25,952.56",Legal Aid Civil Representation
MoJ,LAA,28/09/22,Legal Aid Higher Crime,LEGAL AID FUND,DAFYDD H ENOCH QC,2495791:161593671,"95,969.98",Legal Aid Higher Crime
MoJ,LAA,28/09/22,Legal Aid Lower Crime,LEGAL AID FUND,DALTON HOLMES GRAY,2496143:161594768,"41,927.22",Legal Aid Lower Crime
MoJ,LAA,28/09/22,Legal Aid Legal Help,LEGAL AID FUND,DAVID GRAY LLP,2496073:161594423,"34,216.69",Legal Aid Legal Help
MoJ,LAA,28/09/22,Legal Aid Lower Crime,LEGAL AID FUND,DAVID SEDGWICK SOLICITORS LTD,2494487:161594535,"33,630.45",Legal Aid Lower Crime
MoJ,LAA,28/09/22,Legal Aid Lower Crime,LEGAL AID FUND,DAVIES & JONES SOLICITORS,2494862:161595310,"25,500.00",Legal Aid Lower Crime
MoJ,LAA,28/09/22,Legal Aid Lower Crime,LEGAL AID FUND,DE MAIDS SOLICITORS & ADVOCATES,2496349:161595311,"28,000.00",Legal Aid Lower Crime
MoJ,LAA,28/09/22,Legal Aid Legal Help,LEGAL AID FUND,DEIGHTON PIERCE GLYNN LTD,2492345:161594010,"94,440.24",Legal Aid Legal Help
MoJ,LAA,28/09/22,Legal Aid Legal Help,LEGAL AID FUND,DEIGHTON PIERCE GLYNN LTD,2494400:161593934,"32,762.21",Legal Aid Legal Help
MoJ,LAA,28/09/22,Legal Aid Civil Representation,LEGAL AID FUND,DENISE A GILLING QC,2494157:3000006936140026,"34,776.00",Legal Aid Civil Representation
MoJ,LAA,28/09/22,Legal Aid Lower Crime,LEGAL AID FUND,DEVON DEFENCE SOLICITORS & ADVOCATES,2493301:161595540,"26,999.14",Legal Aid Lower Crime
MoJ,LAA,28/09/22,Legal Aid Lower Crime,LEGAL AID FUND,DEVONALD GRIFFITHS JOHN,2494654:161594562,"46,229.37",Legal Aid Lower Crime
MoJ,LAA,28/09/22,Legal Aid Civil Representation,LEGAL AID FUND,DEVONALDS SOLICITORS,2494797:3000012307510003,"26,545.86",Legal Aid Civil Representation
MoJ,LAA,28/09/22,Legal Aid Lower Crime,LEGAL AID FUND,DJMS SOLICITORS LTD,2496002:161594827,"27,918.56",Legal Aid Lower Crime
MoJ,LAA,28/09/22,Legal Aid Lower Crime,LEGAL AID FUND,DOBSONS,2494881:161595349,"46,000.00",Legal Aid Lower Crime
MoJ,LAA,28/09/22,Legal Aid Higher Crime,LEGAL AID FUND,DOMINIC C D'SOUZA,2495847:161606711,"38,480.00",Legal Aid Higher Crime
MoJ,LAA,28/09/22,Legal Aid Lower Crime,LEGAL AID FUND,DONOGHUES SOLICITORS,2494852:161594557,"47,021.32",Legal Aid Lower Crime
MoJ,LAA,28/09/22,Legal Aid Legal Help,LEGAL AID FUND,DONOVAN NEWTON SOLICITORS,2494406:161594439,"57,853.46",Legal Aid Legal Help
MoJ,LAA,28/09/22,Legal Aid Civil Representation,LEGAL AID FUND,DORIAN S DAY,2494304:3000004255430028,"41,868.86",Legal Aid Civil Representation
MoJ,LAA,28/09/22,Legal Aid Lower Crime,LEGAL AID FUND,DPP LAW LTD,2492988:161594805,"28,352.72",Legal Aid Lower Crime
MoJ,LAA,28/09/22,Legal Aid Lower Crime,LEGAL AID FUND,DRISCOLL YOUNG SOLICITORS LTD,2496164:161594548,"32,072.49",Legal Aid Lower Crime
MoJ,LAA,28/09/22,Legal Aid Higher Crime,LEGAL AID FUND,DUNCAN LEWIS SOLICITORS  LTD,2493022:161569027,"67,726.70",Legal Aid Higher Crime
MoJ,LAA,28/09/22,Legal Aid Legal Help,LEGAL AID FUND,DUNCAN LEWIS SOLICITORS  LTD,2493022:161573643,"98,000.00",Legal Aid Legal Help
MoJ,LAA,28/09/22,Legal Aid Legal Help,LEGAL AID FUND,DUNCAN LEWIS SOLICITORS  LTD,2493022:161573662,"97,000.00",Legal Aid Legal Help
MoJ,LAA,28/09/22,Legal Aid Legal Help,LEGAL AID FUND,DUNCAN LEWIS SOLICITORS  LTD,2493022:161573663,"73,400.00",Legal Aid Legal Help
MoJ,LAA,28/09/22,Legal Aid Lower Crime,LEGAL AID FUND,DUNCAN LEWIS SOLICITORS  LTD,2493022:161595355,"40,100.00",Legal Aid Lower Crime
MoJ,LAA,28/09/22,Legal Aid Civil Representation,LEGAL AID FUND,DUNCAN LEWIS SOLICITORS  LTD,2493022:3000004184710059,"32,431.40",Legal Aid Civil Representation
MoJ,LAA,28/09/22,Legal Aid Higher Crime,LEGAL AID FUND,DUNCAN LEWIS SOLICITORS  LTD,2493023:161560122,"39,414.82",Legal Aid Higher Crime
MoJ,LAA,28/09/22,Legal Aid Legal Help,LEGAL AID FUND,DUNCAN LEWIS SOLICITORS  LTD,2493023:161573638,"96,000.00",Legal Aid Legal Help
MoJ,LAA,28/09/22,Legal Aid Legal Help,LEGAL AID FUND,DUNCAN LEWIS SOLICITORS  LTD,2493023:161573639,"95,000.00",Legal Aid Legal Help
MoJ,LAA,28/09/22,Legal Aid Legal Help,LEGAL AID FUND,DUNCAN LEWIS SOLICITORS  LTD,2493023:161573640,"94,000.00",Legal Aid Legal Help
MoJ,LAA,28/09/22,Legal Aid Legal Help,LEGAL AID FUND,DUNCAN LEWIS SOLICITORS  LTD,2493023:161573641,"93,000.00",Legal Aid Legal Help
MoJ,LAA,28/09/22,Legal Aid Legal Help,LEGAL AID FUND,DUNCAN LEWIS SOLICITORS  LTD,2493765:161594086,"59,300.00",Legal Aid Legal Help
MoJ,LAA,28/09/22,Legal Aid Civil Representation,LEGAL AID FUND,EATONS,2494759:3000006997830028,"30,883.35",Legal Aid Civil Representation
MoJ,LAA,28/09/22,Legal Aid Lower Crime,LEGAL AID FUND,EBR ATTRIDGE LLP,2492897:161594697,"46,364.39",Legal Aid Lower Crime
MoJ,LAA,28/09/22,Legal Aid Lower Crime,LEGAL AID FUND,EBR ATTRIDGE LLP,2492898:161594695,"54,434.57",Legal Aid Lower Crime
MoJ,LAA,28/09/22,Legal Aid Lower Crime,LEGAL AID FUND,EDEN LEGAL SERVICES LTD,2495219:161595974,"36,438.51",Legal Aid Lower Crime
MoJ,LAA,28/09/22,Legal Aid Civil Representation,LEGAL AID FUND,EDWARDS DUTHIE SHAMASH SOLICITORS,2496466:3000006064300014,"33,796.29",Legal Aid Civil Representation
MoJ,LAA,28/09/22,Legal Aid Civil Representation,LEGAL AID FUND,EDWARDS DUTHIE SHAMASH SOLICITORS,2496466:3000006801790012,"25,207.53",Legal Aid Civil Representation
MoJ,LAA,28/09/22,Legal Aid Legal Help,LEGAL AID FUND,ELDER RAHIMI LIMITED,2494603:161594360,"37,359.79",Legal Aid Legal Help
MoJ,LAA,28/09/22,Legal Aid Civil Representation,LEGAL AID FUND,ELIZABETH MCGRATH QC,2495625:3000006172790035,"88,290.00",Legal Aid Civil Representation
MoJ,LAA,28/09/22,Legal Aid Civil Representation,LEGAL AID FUND,ELLIOT MATHER LLP,2496277:3000006375600019,"31,135.80",Legal Aid Civil Representation
MoJ,LAA,28/09/22,Legal Aid Lower Crime,LEGAL AID FUND,ELLIOT MATHER LLP,2496278:161595324,"27,500.00",Legal Aid Lower Crime
MoJ,LAA,28/09/22,Legal Aid Higher Crime,LEGAL AID FUND,ENNON & CO LTD,2492877:161579480,"35,597.46",Legal Aid Higher Crime
MoJ,LAA,28/09/22,Legal Aid Lower Crime,LEGAL AID FUND,EVANS HAYES BURNELL SOLICITORS LTD,2492059:161595869,"31,749.42",Legal Aid Lower Crime
MoJ,LAA,28/09/22,Legal Aid Legal Help,LEGAL AID FUND,FADIGA & CO LTD,2493126:161594316,"55,362.81",Legal Aid Legal Help
MoJ,LAA,28/09/22,Legal Aid Higher Crime,LEGAL AID FUND,FARADAYS SOLICITORS LTD,2496183:161561046,"107,574.07",Legal Aid Higher Crime
MoJ,LAA,28/09/22,Legal Aid Higher Crime,LEGAL AID FUND,FARLEYS SOLICITORS LLP,2493143:161561053,"26,716.71",Legal Aid Higher Crime
MoJ,LAA,28/09/22,Legal Aid Legal Help,LEGAL AID FUND,FISHER JONES GREENWOOD LLP,2492252:161595027,"38,914.11",Legal Aid Legal Help
MoJ,LAA,28/09/22,Legal Aid Lower Crime,LEGAL AID FUND,FORBES SOLICITORS LLP,2496155:161595424,"34,300.00",Legal Aid Lower Crime
MoJ,LAA,28/09/22,Legal Aid Lower Crime,LEGAL AID FUND,FORBES SOLICITORS LLP,2496156:161595423,"52,200.00",Legal Aid Lower Crime
MoJ,LAA,28/09/22,Legal Aid Legal Help,LEGAL AID FUND,FOUNTAIN SOLICITORS LTD,2491993:161595153,"29,530.14",Legal Aid Legal Help
MoJ,LAA,28/09/22,Legal Aid Civil Representation,LEGAL AID FUND,FOYS SOLICITORS,2493118:3000005669740021,"28,118.05",Legal Aid Civil Representation
MoJ,LAA,28/09/22,Legal Aid Civil Representation,LEGAL AID FUND,FOYS SOLICITORS,2493119:3000006672580021,"25,428.73",Legal Aid Civil Representation
MoJ,LAA,28/09/22,Legal Aid Higher Crime,LEGAL AID FUND,FRAME SMITH SOLICITORS,2496211:161601797,"89,975.11",Legal Aid Higher Crime
MoJ,LAA,28/09/22,Legal Aid Lower Crime,LEGAL AID FUND,G C LAW LTD,2495967:161595614,"28,681.55",Legal Aid Lower Crime
MoJ,LAA,28/09/22,Legal Aid Lower Crime,LEGAL AID FUND,G T STEWART LTD,2492074:161596015,"29,205.15",Legal Aid Lower Crime
MoJ,LAA,28/09/22,Legal Aid Civil Representation,LEGAL AID FUND,G T STEWART LTD,2492074:3000006919650028,"40,961.06",Legal Aid Civil Representation
MoJ,LAA,28/09/22,Legal Aid Legal Help,LEGAL AID FUND,G T STEWART LTD,2492286:161593991,"31,877.82",Legal Aid Legal Help
MoJ,LAA,28/09/22,Legal Aid Lower Crime,LEGAL AID FUND,G T STEWART LTD,2492920:161594774,"105,326.63",Legal Aid Lower Crime
MoJ,LAA,28/09/22,Legal Aid Lower Crime,LEGAL AID FUND,G T STEWART LTD,2495992:161595679,"40,387.74",Legal Aid Lower Crime
MoJ,LAA,28/09/22,Legal Aid Higher Crime,LEGAL AID FUND,G T STEWART LTD,2495995:161569308,"26,976.79",Legal Aid Higher Crime
MoJ,LAA,28/09/22,Legal Aid Legal Help,LEGAL AID FUND,GARRATTS,2494648:161594368,"26,616.16",Legal Aid Legal Help
MoJ,LAA,28/09/22,Legal Aid Higher Crime,LEGAL AID FUND,GARY T BELL QC,2494155:161606786,"76,059.99",Legal Aid Higher Crime
MoJ,LAA,28/09/22,Legal Aid Lower Crime,LEGAL AID FUND,GEOFF WHITE & CO,2496041:161594996,"30,992.47",Legal Aid Lower Crime
MoJ,LAA,28/09/22,Legal Aid Lower Crime,LEGAL AID FUND,GEOFFREY FORRESTER & CO,2494702:161594840,"35,047.53",Legal Aid Lower Crime
MoJ,LAA,28/09/22,Legal Aid Civil Representation,LEGAL AID FUND,GERAINT JONES & CO LTD,2494585:3000010408310015,"35,525.44",Legal Aid Civil Representation
MoJ,LAA,28/09/22,Legal Aid Lower Crime,LEGAL AID FUND,GHP LEGAL,2496177:161595313,"29,400.00",Legal Aid Lower Crime
MoJ,LAA,28/09/22,Legal Aid Civil Representation,LEGAL AID FUND,GILLIAN IRVING QC,2494046:3000006680660020,"51,645.60",Legal Aid Civil Representation
MoJ,LAA,28/09/22,Legal Aid Legal Help,LEGAL AID FUND,GLEDHILL GILL SOLICITORS,2496455:161594148,"41,968.89",Legal Aid Legal Help
MoJ,LAA,28/09/22,Legal Aid Higher Crime,LEGAL AID FUND,GOLDKORNS,2495990:161561063,"29,209.56",Legal Aid Higher Crime
MoJ,LAA,28/09/22,Legal Aid Lower Crime,LEGAL AID FUND,GOLDKORNS,2495990:161595639,"32,223.75",Legal Aid Lower Crime
MoJ,LAA,28/09/22,Legal Aid Lower Crime,LEGAL AID FUND,GOMER WILLIAMS,2493272:161594556,"40,357.23",Legal Aid Lower Crime
MoJ,LAA,28/09/22,Legal Aid Higher Crime,LEGAL AID FUND,GOOD & CO SOLICITORS LTD,2496030:161569643,"50,541.78",Legal Aid Higher Crime
MoJ,LAA,28/09/22,Legal Aid Lower Crime,LEGAL AID FUND,GOODALL BARNETT JAMES SOLICITORS,2496399:161595443,"31,200.00",Legal Aid Lower Crime
MoJ,LAA,28/09/22,Legal Aid Civil Representation,LEGAL AID FUND,GOODLAW SOLICITORS,2494377:3000005420980022,"28,535.60",Legal Aid Civil Representation
MoJ,LAA,28/09/22,Legal Aid Lower Crime,LEGAL AID FUND,GRAHAM & CO SOLICITORS LTD,2492077:161596012,"56,860.77",Legal Aid Lower Crime
MoJ,LAA,28/09/22,Legal Aid Civil Representation,LEGAL AID FUND,GRAHAM & ROSEN LTD,2494709:3000006802880020,"35,181.30",Legal Aid Civil Representation
MoJ,LAA,28/09/22,Legal Aid Lower Crime,LEGAL AID FUND,GRAY & CO SOLICITORS LTD,2493985:161595761,"30,727.00",Legal Aid Lower Crime
MoJ,LAA,28/09/22,Legal Aid Legal Help,LEGAL AID FUND,GREATER MANCHESTER IMMIGRATION UNIT,2494684:161594513,"31,351.45",Legal Aid Legal Help
MoJ,LAA,28/09/22,Legal Aid Higher Crime,LEGAL AID FUND,GRECH GOODEN CORMACK SOLICITORS LTD,2494436:161552270,"29,664.55",Legal Aid Higher Crime
MoJ,LAA,28/09/22,Legal Aid Higher Crime,LEGAL AID FUND,GUDRUN YOUNG,2495814:161568972,"37,572.00",Legal Aid Higher Crime
MoJ,LAA,28/09/22,Legal Aid Legal Help,LEGAL AID FUND,GUILE NICHOLAS-INC DONALD GALBRAITH & CO,2494418:161573664,"98,000.00",Legal Aid Legal Help
MoJ,LAA,28/09/22,Legal Aid Lower Crime,LEGAL AID FUND,GWB HARTHILLS LLP,2493688:161595900,"32,023.57",Legal Aid Lower Crime
MoJ,LAA,28/09/22,Legal Aid Civil Representation,LEGAL AID FUND,GWB HARTHILLS LLP,2495960:3000005371300015,"25,329.09",Legal Aid Civil Representation
MoJ,LAA,28/09/22,Legal Aid Civil Representation,LEGAL AID FUND,GWB HARTHILLS LLP,2495960:3000005737020025,"28,494.62",Legal Aid Civil Representation
MoJ,LAA,28/09/22,Legal Aid Lower Crime,LEGAL AID FUND,GWB HARTHILLS LLP,2496067:161594873,"37,782.15",Legal Aid Lower Crime
MoJ,LAA,28/09/22,Legal Aid Lower Crime,LEGAL AID FUND,H P GOWER SOLICITORS,2492833:161595716,"82,084.39",Legal Aid Lower Crime
MoJ,LAA,28/09/22,Legal Aid Civil Representation,LEGAL AID FUND,HALL SMITH WHITTINGHAM LLP,2496152:3000007213990023,"25,679.95",Legal Aid Civil Representation
MoJ,LAA,28/09/22,Legal Aid Legal Help,LEGAL AID FUND,HALLIDAY REEVES SOLICITORS,2494399:161593951,"26,078.53",Legal Aid Legal Help
MoJ,LAA,28/09/22,Legal Aid Civil Representation,LEGAL AID FUND,HARLAND & CO LTD,2493001:3000007859250012,"33,316.50",Legal Aid Civil Representation
MoJ,LAA,28/09/22,Legal Aid Lower Crime,LEGAL AID FUND,HARRIS CUFFARO & NICHOLS,2493186:161595333,"60,100.00",Legal Aid Lower Crime
MoJ,LAA,28/09/22,Legal Aid Lower Crime,LEGAL AID FUND,HARRIS SOLICITORS LTD,2492825:161595698,"25,036.67",Legal Aid Lower Crime
MoJ,LAA,28/09/22,Legal Aid Higher Crime,LEGAL AID FUND,HARWOOD SOLICITORS,2492152:161578940,"60,310.56",Legal Aid Higher Crime
MoJ,LAA,28/09/22,Legal Aid Higher Crime,LEGAL AID FUND,HASKELL & CO,2494483:161560685,"56,824.28",Legal Aid Higher Crime
MoJ,LAA,28/09/22,Legal Aid Lower Crime,LEGAL AID FUND,HASKELL & CO,2494483:161592026,"33,821.68",Legal Aid Lower Crime
MoJ,LAA,28/09/22,Legal Aid Civil Representation,LEGAL AID FUND,HATHAWAYS THE LAW FIRM LTD,2494697:3000006374190004,"30,891.10",Legal Aid Civil Representation
MoJ,LAA,28/09/22,Legal Aid Civil Representation,LEGAL AID FUND,HATTENS,2493040:3000010794190018,"25,970.41",Legal Aid Civil Representation
MoJ,LAA,28/09/22,Legal Aid Lower Crime,LEGAL AID FUND,HAY & KILNER LLP,2494725:161594839,"26,801.38",Legal Aid Lower Crime
MoJ,LAA,28/09/22,Legal Aid Lower Crime,LEGAL AID FUND,HAYWOOD LUNN & ALLEN LTD,2493701:161595890,"29,886.05",Legal Aid Lower Crime
MoJ,LAA,28/09/22,Legal Aid Lower Crime,LEGAL AID FUND,HE LAW LTD,2492800:161595741,"27,500.51",Legal Aid Lower Crime
MoJ,LAA,28/09/22,Legal Aid Civil Representation,LEGAL AID FUND,HECHT MONTGOMERY SOLICITORS,2492299:3000004255430029,"87,153.83",Legal Aid Civil Representation
MoJ,LAA,28/09/22,Legal Aid Higher Crime,LEGAL AID FUND,HENNESSY & HAMMUDI,2494461:161568096,"88,169.35",Legal Aid Higher Crime
MoJ,LAA,28/09/22,Legal Aid Lower Crime,LEGAL AID FUND,HENNESSY & HAMMUDI,2494461:161595459,"51,800.00",Legal Aid Lower Crime
MoJ,LAA,28/09/22,Legal Aid Higher Crime,LEGAL AID FUND,HENRY BLAXLAND QC,2493903:161605870,"130,360.00",Legal Aid Higher Crime
MoJ,LAA,28/09/22,Legal Aid Lower Crime,LEGAL AID FUND,HENRY HYAMS LTD,2494758:161594897,"37,781.40",Legal Aid Lower Crime
MoJ,LAA,28/09/22,Legal Aid Civil Representation,LEGAL AID FUND,HENRY J SETRIGHT QC,2496528:3000004729240065,"30,000.00",Legal Aid Civil Representation
MoJ,LAA,28/09/22,Legal Aid Lower Crime,LEGAL AID FUND,HERMANS,2494581:161594940,"27,402.85",Legal Aid Lower Crime
MoJ,LAA,28/09/22,Legal Aid Lower Crime,LEGAL AID FUND,HILL TWINE SOLICITORS,2493760:161595779,"36,362.77",Legal Aid Lower Crime
MoJ,LAA,28/09/22,Legal Aid Lower Crime,LEGAL AID FUND,HINE SOLICITORS,2492811:161595682,"32,543.11",Legal Aid Lower Crime
MoJ,LAA,28/09/22,Legal Aid Civil Representation,LEGAL AID FUND,HOPE E LAPPIN,2495072:3000007651390017,"38,299.80",Legal Aid Civil Representation
MoJ,LAA,28/09/22,Legal Aid Lower Crime,LEGAL AID FUND,HOWARD & BYRNE SOLICITORS,2496137:161595403,"62,500.00",Legal Aid Lower Crime
MoJ,LAA,28/09/22,Legal Aid Civil Representation,LEGAL AID FUND,HOWARD & CO,2493026:3000006199580050,"42,451.86",Legal Aid Civil Representation
MoJ,LAA,28/09/22,Legal Aid Lower Crime,LEGAL AID FUND,HOWARDS SOLICITORS LTD,2493731:161595904,"27,656.20",Legal Aid Lower Crime
MoJ,LAA,28/09/22,Legal Aid Lower Crime,LEGAL AID FUND,HOWARDS SOLICITORS LTD,2495989:161595674,"30,041.81",Legal Aid Lower Crime
MoJ,LAA,28/09/22,Legal Aid Legal Help,LEGAL AID FUND,HOWE & CO,2496068:161594357,"35,906.60",Legal Aid Legal Help
MoJ,LAA,28/09/22,Legal Aid Lower Crime,LEGAL AID FUND,HOWELL HYLTON LTD,2494653:161595534,"37,570.39",Legal Aid Lower Crime
MoJ,LAA,28/09/22,Legal Aid Lower Crime,LEGAL AID FUND,HOWELLS LLP,2496237:161595396,"32,200.00",Legal Aid Lower Crime
MoJ,LAA,28/09/22,Legal Aid Higher Crime,LEGAL AID FUND,HSR SOLICITORS,2492875:161569269,"45,304.16",Legal Aid Higher Crime
MoJ,LAA,28/09/22,Legal Aid Higher Crime,LEGAL AID FUND,HURRAIRAH HARRIS SOLICITORS,2492801:161569054,"45,304.98",Legal Aid Higher Crime
MoJ,LAA,28/09/22,Legal Aid Civil Representation,LEGAL AID FUND,I B B LAW LLP,2496094:161565430,"35,065.10",Legal Aid Civil Representation
MoJ,LAA,28/09/22,Legal Aid Higher Crime,LEGAL AID FUND,I B B LAW LLP,2496094:161568848,"74,221.65",Legal Aid Higher Crime
MoJ,LAA,28/09/22,Legal Aid Lower Crime,LEGAL AID FUND,I B B LAW LLP,2496094:161595351,"63,800.00",Legal Aid Lower Crime
MoJ,LAA,28/09/22,Legal Aid Legal Help,LEGAL AID FUND,IMMIGRATION ADVICE SERVICE,2492230:161595034,"29,622.87",Legal Aid Legal Help
MoJ,LAA,28/09/22,Legal Aid Legal Help,LEGAL AID FUND,IMMIGRATION ADVICE SERVICE,2492231:161595033,"29,709.13",Legal Aid Legal Help
MoJ,LAA,28/09/22,Legal Aid Legal Help,LEGAL AID FUND,IMMIGRATION ADVICE SERVICE,2495014:161595284,"44,219.81",Legal Aid Legal Help
MoJ,LAA,28/09/22,Legal Aid Lower Crime,LEGAL AID FUND,INSTALAW,2492181:161595830,"108,513.79",Legal Aid Lower Crime
MoJ,LAA,28/09/22,Legal Aid Lower Crime,LEGAL AID FUND,IRVINE THANVI NATAS SOLICITORS,2494577:161594686,"65,837.23",Legal Aid Lower Crime
MoJ,LAA,28/09/22,Legal Aid Legal Help,LEGAL AID FUND,ISLINGTON LAW CENTRE,2496187:161593929,"41,815.39",Legal Aid Legal Help
MoJ,LAA,28/09/22,Legal Aid Lower Crime,LEGAL AID FUND,J D SOLICITORS LTD,2495254:161595949,"55,657.79",Legal Aid Lower Crime
MoJ,LAA,28/09/22,Legal Aid Legal Help,LEGAL AID FUND,J D SPICER ZEB,2493292:161594327,"29,025.40",Legal Aid Legal Help
MoJ,LAA,28/09/22,Legal Aid Lower Crime,LEGAL AID FUND,J D SPICER ZEB,2493292:161594717,"45,964.44",Legal Aid Lower Crime
MoJ,LAA,28/09/22,Legal Aid Higher Crime,LEGAL AID FUND,J DEXTER DIAS,2493911:161568137,"72,996.00",Legal Aid Higher Crime
MoJ,LAA,28/09/22,Legal Aid Legal Help,LEGAL AID FUND,J M WILSON SOLICITORS LTD,2494782:161594129,"31,882.70",Legal Aid Legal Help
MoJ,LAA,28/09/22,Legal Aid Civil Representation,LEGAL AID FUND,JACKIE MCKIE,2495699:3000006867640015,"45,057.60",Legal Aid Civil Representation
MoJ,LAA,28/09/22,Legal Aid Legal Help,LEGAL AID FUND,JACKSON LEES GROUP LTD,2495563:161595079,"30,370.72",Legal Aid Legal Help
MoJ,LAA,28/09/22,Legal Aid Legal Help,LEGAL AID FUND,JACKSON LEES GROUP LTD,2496417:161594296,"48,998.27",Legal Aid Legal Help
MoJ,LAA,28/09/22,Legal Aid Lower Crime,LEGAL AID FUND,JACKSON LEES GROUP LTD,2496417:161596099,"60,548.41",Legal Aid Lower Crime
MoJ,LAA,28/09/22,Legal Aid Civil Representation,LEGAL AID FUND,JAMES H H TILLYARD QC,2492619:3000010408310016,"48,635.76",Legal Aid Civil Representation
MoJ,LAA,28/09/22,Legal Aid Higher Crime,LEGAL AID FUND,JAMES L BOURNE-ARTON,2494039:161604768,"73,037.66",Legal Aid Higher Crime
MoJ,LAA,28/09/22,Legal Aid Lower Crime,LEGAL AID FUND,JAMES MURRAY SOLICITORS,2496220:161594804,"39,197.19",Legal Aid Lower Crime
MoJ,LAA,28/09/22,Legal Aid Higher Crime,LEGAL AID FUND,JASON A SUGARMAN,2495922:161555968,"76,552.84",Legal Aid Higher Crime
MoJ,LAA,28/09/22,Legal Aid Higher Crime,LEGAL AID FUND,JEREMY BARTON,2495747:161593672,"48,258.00",Legal Aid Higher Crime
MoJ,LAA,28/09/22,Legal Aid Lower Crime,LEGAL AID FUND,JERMAN SAMUELS & PEARSON LLP,2495224:161594531,"53,500.00",Legal Aid Lower Crime
MoJ,LAA,28/09/22,Legal Aid Higher Crime,LEGAL AID FUND,JESSICA TATE,2492239:161571446,"38,769.80",Legal Aid Higher Crime
MoJ,LAA,28/09/22,Legal Aid Civil Representation,LEGAL AID FUND,JI SOLICITORS LTD,2494686:3000005846960007,"28,289.27",Legal Aid Civil Representation
MoJ,LAA,28/09/22,Legal Aid Higher Crime,LEGAL AID FUND,JMW SOLICITORS LLP,2496387:161552009,"85,767.67",Legal Aid Higher Crime
MoJ,LAA,28/09/22,Legal Aid Higher Crime,LEGAL AID FUND,JMW SOLICITORS LLP,2496387:161557542,"37,002.01",Legal Aid Higher Crime
MoJ,LAA,28/09/22,Legal Aid Higher Crime,LEGAL AID FUND,JMW SOLICITORS LLP,2496387:161579486,"40,696.86",Legal Aid Higher Crime
MoJ,LAA,28/09/22,Legal Aid Legal Help,LEGAL AID FUND,JOHN BLACK SOLICITORS LTD,2493730:161595137,"25,031.80",Legal Aid Legal Help
MoJ,LAA,28/09/22,Legal Aid Lower Crime,LEGAL AID FUND,JOHN DELANEY & CO SOLICITORS,2494533:161595410,"33,000.00",Legal Aid Lower Crime
MoJ,LAA,28/09/22,Legal Aid Lower Crime,LEGAL AID FUND,JOHNSON ASTILLS LTD,2494598:161594593,"25,156.44",Legal Aid Lower Crime
MoJ,LAA,28/09/22,Legal Aid Lower Crime,LEGAL AID FUND,JSP LAW LTD,2495332:161595799,"26,625.96",Legal Aid Lower Crime
MoJ,LAA,28/09/22,Legal Aid Legal Help,LEGAL AID FUND,JUSTICE & RIGHTS LAW FIRM (LTD),2493518:161595259,"54,310.79",Legal Aid Legal Help
MoJ,LAA,28/09/22,Legal Aid Civil Representation,LEGAL AID FUND,K & S @ LAW SOLICITORS,2494446:3000007929510011,"30,531.74",Legal Aid Civil Representation
MoJ,LAA,28/09/22,Legal Aid Civil Representation,LEGAL AID FUND,K & S @ LAW SOLICITORS,2494446:3000014076080011,"28,171.29",Legal Aid Civil Representation
MoJ,LAA,28/09/22,Legal Aid Lower Crime,LEGAL AID FUND,K LEGAL SOLICITORS,2492818:161595731,"42,488.25",Legal Aid Lower Crime
MoJ,LAA,28/09/22,Legal Aid Higher Crime,LEGAL AID FUND,KATE J LUMSDON,2495789:161566549,"78,199.99",Legal Aid Higher Crime
MoJ,LAA,28/09/22,Legal Aid Lower Crime,LEGAL AID FUND,KEANEY WHITEHEAD PARTNERSHIP,2494429:161594815,"26,210.20",Legal Aid Lower Crime
MoJ,LAA,28/09/22,Legal Aid Civil Representation,LEGAL AID FUND,KENNETH BUSH LTD,2494671:3000004919500025,"25,699.76",Legal Aid Civil Representation
MoJ,LAA,28/09/22,Legal Aid Legal Help,LEGAL AID FUND,KESAR & CO SOLICITORS,2494320:161595074,"39,696.17",Legal Aid Legal Help
MoJ,LAA,28/09/22,Legal Aid Lower Crime,LEGAL AID FUND,KESAR & CO SOLICITORS,2494320:161595733,"25,384.82",Legal Aid Lower Crime
MoJ,LAA,28/09/22,Legal Aid Lower Crime,LEGAL AID FUND,KINGSBURY ELLIS LLP,2492099:161595835,"28,623.38",Legal Aid Lower Crime
MoJ,LAA,28/09/22,Legal Aid Lower Crime,LEGAL AID FUND,KRISTINA HARRISON SOLICITORS,2494821:161594970,"25,254.98",Legal Aid Lower Crime
MoJ,LAA,28/09/22,Legal Aid Lower Crime,LEGAL AID FUND,LALLI LEGAL SERVICES LTD,2492078:161596011,"25,791.36",Legal Aid Lower Crime
MoJ,LAA,28/09/22,Legal Aid Lower Crime,LEGAL AID FUND,LANSBURY WORTHINGTON LTD,2493182:161595338,"47,500.00",Legal Aid Lower Crime
MoJ,LAA,28/09/22,Legal Aid Legal Help,LEGAL AID FUND,LAW LANE SOLICITORS LTD,2492028:161595232,"33,777.26",Legal Aid Legal Help
MoJ,LAA,28/09/22,Legal Aid Legal Help,LEGAL AID FUND,LAWANA & CO,2494448:161594308,"43,474.77",Legal Aid Legal Help
MoJ,LAA,28/09/22,Legal Aid Lower Crime,LEGAL AID FUND,LAWRENCE & CO SOLICITORS CDS LLP,2496315:161595363,"28,700.00",Legal Aid Lower Crime
MoJ,LAA,28/09/22,Legal Aid Legal Help,LEGAL AID FUND,LAWSTOP,2493523:161595208,"33,656.22",Legal Aid Legal Help
MoJ,LAA,28/09/22,Legal Aid Lower Crime,LEGAL AID FUND,LAWTONS SOLICITORS LTD,2492054:161595863,"27,207.54",Legal Aid Lower Crime
MoJ,LAA,28/09/22,Legal Aid Lower Crime,LEGAL AID FUND,LAWTONS SOLICITORS LTD,2492765:161594520,"29,500.00",Legal Aid Lower Crime
MoJ,LAA,28/09/22,Legal Aid Legal Help,LEGAL AID FUND,LEGAL JUSTICE SOLICITORS,2492222:161595037,"34,240.57",Legal Aid Legal Help
MoJ,LAA,28/09/22,Legal Aid Civil Representation,LEGAL AID FUND,LEGAL SERVICES FOR CHILDREN,2492888:3000005780850016,"29,945.47",Legal Aid Civil Representation
MoJ,LAA,28/09/22,Legal Aid Civil Representation,LEGAL AID FUND,LEGAL SERVICES FOR CHILDREN,2492888:3000006734960008,"27,333.48",Legal Aid Civil Representation
MoJ,LAA,28/09/22,Legal Aid Civil Representation,LEGAL AID FUND,LEGAL SERVICES FOR CHILDREN,2492888:3000009636310007,"25,532.71",Legal Aid Civil Representation
MoJ,LAA,28/09/22,Legal Aid Legal Help,LEGAL AID FUND,LEI DAT & BAIG SOLICITORS LTD,2494360:161593969,"37,763.15",Legal Aid Legal Help
MoJ,LAA,28/09/22,Legal Aid Lower Crime,LEGAL AID FUND,LEVY & CO SOLICITORS LLP,2494444:161594643,"56,587.11",Legal Aid Lower Crime
MoJ,LAA,28/09/22,Legal Aid Legal Help,LEGAL AID FUND,LEVY & CO SOLICITORS LLP,2494444:161595066,"39,774.24",Legal Aid Legal Help
MoJ,LAA,28/09/22,Legal Aid Higher Crime,LEGAL AID FUND,LEWIS NEDAS LAW LTD,2492082:161601282,"63,300.94",Legal Aid Higher Crime
MoJ,LAA,28/09/22,Legal Aid Lower Crime,LEGAL AID FUND,LLM LIVERPOOL,2492763:161595725,"31,638.48",Legal Aid Lower Crime
MoJ,LAA,28/09/22,Legal Aid Lower Crime,LEGAL AID FUND,LLOYDS PR SOLICITORS,2494547:161594625,"37,151.18",Legal Aid Lower Crime
MoJ,LAA,28/09/22,Legal Aid Higher Crime,LEGAL AID FUND,LLOYDS PR SOLICITORS,2495962:161551907,"69,782.31",Legal Aid Higher Crime
MoJ,LAA,28/09/22,Legal Aid Lower Crime,LEGAL AID FUND,LLOYDS PR SOLICITORS,2495962:161594630,"37,945.75",Legal Aid Lower Crime
MoJ,LAA,28/09/22,Legal Aid Civil Representation,LEGAL AID FUND,LUCY HENDRY QC,2493892:3000007390050009,"49,896.00",Legal Aid Civil Representation
MoJ,LAA,28/09/22,Legal Aid Civil Representation,LEGAL AID FUND,LUKHVINDER KAUR,2494116:3000002073650017,"26,306.94",Legal Aid Civil Representation
MoJ,LAA,28/09/22,Legal Aid Civil Representation,LEGAL AID FUND,LUMB & MACGILL,2494567:3000012922910059,"29,823.86",Legal Aid Civil Representation
MoJ,LAA,28/09/22,Legal Aid Legal Help,LEGAL AID FUND,LUQMANI THOMPSON & PARTNERS,2492982:161594305,"68,791.12",Legal Aid Legal Help
MoJ,LAA,28/09/22,Legal Aid Lower Crime,LEGAL AID FUND,M & A SOLICITORS,2496284:161595402,"29,500.00",Legal Aid Lower Crime
MoJ,LAA,28/09/22,Legal Aid Higher Crime,LEGAL AID FUND,M B LAW LTD,2495108:161579247,"99,560.59",Legal Aid Higher Crime
MoJ,LAA,28/09/22,Legal Aid Higher Crime,LEGAL AID FUND,M K LAW SOLICITORS LTD,2492368:161569132,"57,657.46",Legal Aid Higher Crime
MoJ,LAA,28/09/22,Legal Aid Lower Crime,LEGAL AID FUND,M K LAW SOLICITORS LTD,2492793:161594521,"28,300.00",Legal Aid Lower Crime
MoJ,LAA,28/09/22,Legal Aid Higher Crime,LEGAL AID FUND,MAGUIRES SOLICITORS LTD,2494452:161552767,"29,664.55",Legal Aid Higher Crime
MoJ,LAA,28/09/22,Legal Aid Lower Crime,LEGAL AID FUND,MAIN NICKOLLS LLP,2494583:161594986,"28,646.13",Legal Aid Lower Crime
MoJ,LAA,28/09/22,Legal Aid Civil Representation,LEGAL AID FUND,MAKIN DIXON SOLICITORS LTD,2492263:3000006680660019,"90,845.27",Legal Aid Civil Representation
MoJ,LAA,28/09/22,Legal Aid Civil Representation,LEGAL AID FUND,MAKIN DIXON SOLICITORS LTD,2492297:3000006846070012,"37,544.84",Legal Aid Civil Representation
MoJ,LAA,28/09/22,Legal Aid Civil Representation,LEGAL AID FUND,MAKIN DIXON SOLICITORS LTD,2492904:3000005198710035,"28,479.86",Legal Aid Civil Representation
MoJ,LAA,28/09/22,Legal Aid Legal Help,LEGAL AID FUND,MANDER CRUICKSHANK SOLICITORS LLP,2496304:161594444,"25,491.96",Legal Aid Legal Help
MoJ,LAA,28/09/22,Legal Aid Higher Crime,LEGAL AID FUND,MARK D GATLEY QC,2493923:161578939,"41,208.00",Legal Aid Higher Crime
MoJ,LAA,28/09/22,Legal Aid Lower Crime,LEGAL AID FUND,MARTIN MURRAY & ASSOCIATES,2496435:161594709,"50,516.68",Legal Aid Lower Crime
MoJ,LAA,28/09/22,Legal Aid Higher Crime,LEGAL AID FUND,MARTIN P GOUDIE QC,2494384:161593160,"76,160.00",Legal Aid Higher Crime
MoJ,LAA,28/09/22,Legal Aid Higher Crime,LEGAL AID FUND,MATHEW J SHERRATT QC,2492480:161606857,"75,560.00",Legal Aid Higher Crime
MoJ,LAA,28/09/22,Legal Aid Civil Representation,LEGAL AID FUND,MATTHEW D MAYNARD,2495861:3000006262390003,"52,747.20",Legal Aid Civil Representation
MoJ,LAA,28/09/22,Legal Aid Higher Crime,LEGAL AID FUND,MAYFAIR SOLICITORS,2495285:161552471,"31,563.09",Legal Aid Higher Crime
MoJ,LAA,28/09/22,Legal Aid Civil Representation,LEGAL AID FUND,MCCORMACKS LAW,2493044:3000005079500003,"28,846.63",Legal Aid Civil Representation
MoJ,LAA,28/09/22,Legal Aid Lower Crime,LEGAL AID FUND,MCGREGOR'S SOLICITORS,2496218:161595574,"27,741.52",Legal Aid Lower Crime
MoJ,LAA,28/09/22,Legal Aid Lower Crime,LEGAL AID FUND,MCSORLEY LEWIS LAW LTD,2493277:161594563,"25,512.60",Legal Aid Lower Crime
MoJ,LAA,28/09/22,Legal Aid Lower Crime,LEGAL AID FUND,METCALFE COPEMAN & PETTEFAR,2493113:161595336,"36,600.00",Legal Aid Lower Crime
MoJ,LAA,28/09/22,Legal Aid Higher Crime,LEGAL AID FUND,METRO LAW SOLICITORS LTD,2495256:161601535,"105,472.91",Legal Aid Higher Crime
MoJ,LAA,28/09/22,Legal Aid Higher Crime,LEGAL AID FUND,MIAN & CO,2494635:161552812,"35,557.83",Legal Aid Higher Crime
MoJ,LAA,28/09/22,Legal Aid Higher Crime,LEGAL AID FUND,MIAN & CO,2494635:161561240,"25,564.95",Legal Aid Higher Crime
MoJ,LAA,28/09/22,Legal Aid Higher Crime,LEGAL AID FUND,MIAN & CO,2494635:161569176,"67,726.70",Legal Aid Higher Crime
MoJ,LAA,28/09/22,Legal Aid Lower Crime,LEGAL AID FUND,MICHAEL CARROLL & CO,2492945:161595367,"51,600.00",Legal Aid Lower Crime
MoJ,LAA,28/09/22,Legal Aid Higher Crime,LEGAL AID FUND,MICHAEL EDMONDS,2492384:161552330,"35,016.00",Legal Aid Higher Crime
MoJ,LAA,28/09/22,Legal Aid Civil Representation,LEGAL AID FUND,MILES & PARTNERS LLP,2494753:3000006711210022,"25,922.46",Legal Aid Civil Representation
MoJ,LAA,28/09/22,Legal Aid Civil Representation,LEGAL AID FUND,MKB SOLICITORS LLP,2494770:3000006898360021,"30,526.93",Legal Aid Civil Representation
MoJ,LAA,28/09/22,Legal Aid Civil Representation,LEGAL AID FUND,MSB SOLICITORS LTD,2492255:3000006632960019,"30,584.39",Legal Aid Civil Representation
MoJ,LAA,28/09/22,Legal Aid Civil Representation,LEGAL AID FUND,MSB SOLICITORS LTD,2496355:3000005814040028,"48,980.12",Legal Aid Civil Representation
MoJ,LAA,28/09/22,Legal Aid Civil Representation,LEGAL AID FUND,NATASHA C JOHNSON,2493621:3000006632960020,"47,358.47",Legal Aid Civil Representation
MoJ,LAA,28/09/22,Legal Aid Civil Representation,LEGAL AID FUND,NATIONAL FAMILY MEDIATION,2494372:161596157,"45,526.80",Legal Aid Civil Representation
MoJ,LAA,28/09/22,Legal Aid Civil Representation,LEGAL AID FUND,NATIONAL LEGAL SERVICE LTD,2491927:3000007152240024,"26,059.73",Legal Aid Civil Representation
MoJ,LAA,28/09/22,Legal Aid Civil Representation,LEGAL AID FUND,NATIONAL LEGAL SERVICE LTD,2492044:3000013353490015,"29,274.07",Legal Aid Civil Representation
MoJ,LAA,28/09/22,Legal Aid Lower Crime,LEGAL AID FUND,NATIONAL LEGAL SERVICE LTD,2495554:161595788,"34,550.99",Legal Aid Lower Crime
MoJ,LAA,28/09/22,Legal Aid Lower Crime,LEGAL AID FUND,NEEDHAM POULIER LTD,2492980:161594789,"29,610.89",Legal Aid Lower Crime
MoJ,LAA,28/09/22,Legal Aid Higher Crime,LEGAL AID FUND,NEWTON LAW PRACTICE,2492886:161600547,"37,497.85",Legal Aid Higher Crime
MoJ,LAA,28/09/22,Legal Aid Lower Crime,LEGAL AID FUND,NOBLE SOLICITORS,2492795:161595651,"66,255.06",Legal Aid Lower Crime
MoJ,LAA,28/09/22,Legal Aid Lower Crime,LEGAL AID FUND,NORRIE WAITE & SLATER,2496286:161594865,"25,452.72",Legal Aid Lower Crime
MoJ,LAA,28/09/22,Legal Aid Lower Crime,LEGAL AID FUND,NUMBER ONE LAW LLP,2496028:161595628,"30,019.36",Legal Aid Lower Crime
MoJ,LAA,28/09/22,Legal Aid Lower Crime,LEGAL AID FUND,OBW PERERA LTD,2496116:161595335,"29,000.00",Legal Aid Lower Crime
MoJ,LAA,28/09/22,Legal Aid Lower Crime,LEGAL AID FUND,OLD BAILEY SOLICITORS LTD,2492822:161595680,"46,950.40",Legal Aid Lower Crime
MoJ,LAA,28/09/22,Legal Aid Lower Crime,LEGAL AID FUND,O'NEILL WRIGHT & NASH,2492826:161595638,"30,586.53",Legal Aid Lower Crime
MoJ,LAA,28/09/22,Legal Aid Lower Crime,LEGAL AID FUND,OSLERS SOLICITORS,2495974:161594659,"44,244.53",Legal Aid Lower Crime
MoJ,LAA,28/09/22,Legal Aid Lower Crime,LEGAL AID FUND,OWEN & SHARPE SOLICITORS,2494447:161595553,"30,034.04",Legal Aid Lower Crime
MoJ,LAA,28/09/22,Legal Aid Lower Crime,LEGAL AID FUND,PANESAR & CO SOLICITORS,2492977:161594642,"26,399.46",Legal Aid Lower Crime
MoJ,LAA,28/09/22,Legal Aid Legal Help,LEGAL AID FUND,PARAGON LAW LTD,2496101:161594075,"35,000.00",Legal Aid Legal Help
MoJ,LAA,28/09/22,Legal Aid Legal Help,LEGAL AID FUND,PARKER RHODES HICKMOTTS,2492187:161595046,"35,737.96",Legal Aid Legal Help
MoJ,LAA,28/09/22,Legal Aid Civil Representation,LEGAL AID FUND,PAUL ANDREW WRIGHT,2492520:3000005648030018,"29,687.23",Legal Aid Civil Representation
MoJ,LAA,28/09/22,Legal Aid Civil Representation,LEGAL AID FUND,PAUL CROWLEY & CO SOLICITORS LTD,2492291:3000007651390013,"27,293.09",Legal Aid Civil Representation
MoJ,LAA,28/09/22,Legal Aid Lower Crime,LEGAL AID FUND,PAUL ROBINSON SOLICITORS LLP,2495261:161595946,"30,450.20",Legal Aid Lower Crime
MoJ,LAA,28/09/22,Legal Aid Civil Representation,LEGAL AID FUND,PAUL S J FROUD,2495237:3000006631970014,"26,526.07",Legal Aid Civil Representation
MoJ,LAA,28/09/22,Legal Aid Lower Crime,LEGAL AID FUND,PEPPERELLS SOLICITORS,2496010:161595650,"29,659.33",Legal Aid Lower Crime
MoJ,LAA,28/09/22,Legal Aid Civil Representation,LEGAL AID FUND,PETER DUNN AND CO LTD,2494693:3000010978910012,"40,150.65",Legal Aid Civil Representation
MoJ,LAA,28/09/22,Legal Aid Legal Help,LEGAL AID FUND,PETER EDWARDS LAW LTD,2492949:161594042,"26,100.00",Legal Aid Legal Help
MoJ,LAA,28/09/22,Legal Aid Lower Crime,LEGAL AID FUND,PHILIP HANBY LTD TA MCNEIL & CO SOLS,2493104:161594621,"31,213.79",Legal Aid Lower Crime
MoJ,LAA,28/09/22,Legal Aid Higher Crime,LEGAL AID FUND,PHILLIPS OSBORNE LTD,2496083:161569249,"79,718.28",Legal Aid Higher Crime
MoJ,LAA,28/09/22,Legal Aid Higher Crime,LEGAL AID FUND,PIERS N MOSTYN,2495937:161552791,"32,575.20",Legal Aid Higher Crime
MoJ,LAA,28/09/22,Legal Aid Lower Crime,LEGAL AID FUND,POOLE ALCOCK LLP,2493099:161594936,"26,446.20",Legal Aid Lower Crime
MoJ,LAA,28/09/22,Legal Aid Civil Representation,LEGAL AID FUND,PORTER DODSON,2493224:3000005988100045,"51,685.82",Legal Aid Civil Representation
MoJ,LAA,28/09/22,Legal Aid Civil Representation,LEGAL AID FUND,PORTER DODSON,2493224:3000011247470006,"37,256.63",Legal Aid Civil Representation
MoJ,LAA,28/09/22,Legal Aid Civil Representation,LEGAL AID FUND,POWELL & CO SOLICITORS LLP,2494902:3000006965170007,"25,359.34",Legal Aid Civil Representation
MoJ,LAA,28/09/22,Legal Aid Lower Crime,LEGAL AID FUND,POWELL SPENCER AND PARTNERS,2493293:161595344,"34,300.00",Legal Aid Lower Crime
MoJ,LAA,28/09/22,Legal Aid Civil Representation,LEGAL AID FUND,PS LAW LLP,2495151:3000006726250030,"35,383.47",Legal Aid Civil Representation
MoJ,LAA,28/09/22,Legal Aid Lower Crime,LEGAL AID FUND,PURCELL PARKER LTD,2494633:161595487,"79,000.00",Legal Aid Lower Crime
MoJ,LAA,28/09/22,Legal Aid Lower Crime,LEGAL AID FUND,PURE LAW CRIMINAL DEFENCE,2495248:161595873,"54,094.94",Legal Aid Lower Crime
MoJ,LAA,28/09/22,Legal Aid Higher Crime,LEGAL AID FUND,RAHMAN RAVELLI SOLICITORS LTD,2493729:161569464,"42,335.58",Legal Aid Higher Crime
MoJ,LAA,28/09/22,Legal Aid Civil Representation,LEGAL AID FUND,REBECCA FRANKLIN,2492392:3000006172790033,"56,592.00",Legal Aid Civil Representation
MoJ,LAA,28/09/22,Legal Aid Higher Crime,LEGAL AID FUND,REBECCA L WADE,2495862:161607260,"45,561.97",Legal Aid Higher Crime
MoJ,LAA,28/09/22,Legal Aid Legal Help,LEGAL AID FUND,REDMNS SOLICITORS LTD,2491944:161595166,"49,437.55",Legal Aid Legal Help
MoJ,LAA,28/09/22,Legal Aid Lower Crime,LEGAL AID FUND,REECE THOMAS WATSON LTD,2492107:161595833,"65,498.94",Legal Aid Lower Crime
MoJ,LAA,28/09/22,Legal Aid Lower Crime,LEGAL AID FUND,REEDS SOLICITORS LLP,2492019:161595994,"76,206.72",Legal Aid Lower Crime
MoJ,LAA,28/09/22,Legal Aid Lower Crime,LEGAL AID FUND,REEDS SOLICITORS LLP,2492087:161595991,"126,895.07",Legal Aid Lower Crime
MoJ,LAA,28/09/22,Legal Aid Lower Crime,LEGAL AID FUND,REEDS SOLICITORS LLP,2492755:161595661,"25,263.36",Legal Aid Lower Crime
MoJ,LAA,28/09/22,Legal Aid Lower Crime,LEGAL AID FUND,REEDS SOLICITORS LLP,2493786:161595789,"29,154.85",Legal Aid Lower Crime
MoJ,LAA,28/09/22,Legal Aid Higher Crime,LEGAL AID FUND,REEDS SOLICITORS LLP,2494599:161560319,"47,392.66",Legal Aid Higher Crime
MoJ,LAA,28/09/22,Legal Aid Lower Crime,LEGAL AID FUND,REEDS SOLICITORS LLP,2494599:161595529,"27,972.37",Legal Aid Lower Crime
MoJ,LAA,28/09/22,Legal Aid Lower Crime,LEGAL AID FUND,REEVES  & CO SOLICITORS,2492050:161596029,"27,519.02",Legal Aid Lower Crime
MoJ,LAA,28/09/22,Legal Aid Lower Crime,LEGAL AID FUND,REEVES  & CO SOLICITORS,2494428:161594988,"45,436.47",Legal Aid Lower Crime
MoJ,LAA,28/09/22,Legal Aid Lower Crime,LEGAL AID FUND,RENSHAW DERRICK & CO,2496453:161595536,"42,885.46",Legal Aid Lower Crime
MoJ,LAA,28/09/22,Legal Aid Civil Representation,LEGAL AID FUND,RICHARD M BARRACLOUGH QC,2495601:3000013834600022,"31,476.29",Legal Aid Civil Representation
MoJ,LAA,28/09/22,Legal Aid Lower Crime,LEGAL AID FUND,RILEY HAYES & CO SOLICITORS LTD,2494634:161595622,"48,192.70",Legal Aid Lower Crime
MoJ,LAA,28/09/22,Legal Aid Legal Help,LEGAL AID FUND,RMNJ SOLICITORS,2494591:161594293,"26,446.34",Legal Aid Legal Help
MoJ,LAA,28/09/22,Legal Aid Lower Crime,LEGAL AID FUND,RMNJ SOLICITORS,2494591:161594800,"77,233.23",Legal Aid Lower Crime
MoJ,LAA,28/09/22,Legal Aid Higher Crime,LEGAL AID FUND,ROBERT LIZAR SOLICITORS,2496378:161559979,"28,997.22",Legal Aid Higher Crime
MoJ,LAA,28/09/22,Legal Aid Higher Crime,LEGAL AID FUND,ROBERT LIZAR SOLICITORS,2496378:161569174,"37,296.80",Legal Aid Higher Crime
MoJ,LAA,28/09/22,Legal Aid Lower Crime,LEGAL AID FUND,ROBERT LIZAR SOLICITORS,2496378:161594979,"55,355.61",Legal Aid Lower Crime
MoJ,LAA,28/09/22,Legal Aid Higher Crime,LEGAL AID FUND,RODERICK S JOHNSON QC,2495816:161606712,"76,160.01",Legal Aid Higher Crime
MoJ,LAA,28/09/22,Legal Aid Civil Representation,LEGAL AID FUND,ROTHERHAM & CO LTD,2494838:3000005335970021,"29,238.62",Legal Aid Civil Representation
MoJ,LAA,28/09/22,Legal Aid Lower Crime,LEGAL AID FUND,ROY FOREMAN & CO SOLICITORS,2494618:161595408,"38,200.00",Legal Aid Lower Crime
MoJ,LAA,28/09/22,Legal Aid Civil Representation,LEGAL AID FUND,RUBIN LEWIS O'BRIEN LLP,2493251:3000008076910007,"27,142.06",Legal Aid Civil Representation
MoJ,LAA,28/09/22,Legal Aid Civil Representation,LEGAL AID FUND,RUBIN LEWIS O'BRIEN LLP,2493251:3000012936040006,"26,842.15",Legal Aid Civil Representation
MoJ,LAA,28/09/22,Legal Aid Lower Crime,LEGAL AID FUND,RUSSELL & RUSSELL SOLICITORS LLP,2493121:161594913,"25,372.49",Legal Aid Lower Crime
MoJ,LAA,28/09/22,Legal Aid Civil Representation,LEGAL AID FUND,RWK GOODMAN LLP,2493226:3000006448950022,"25,291.98",Legal Aid Civil Representation
MoJ,LAA,28/09/22,Legal Aid Civil Representation,LEGAL AID FUND,RWK GOODMAN LLP,2493226:3000007802710009,"32,067.13",Legal Aid Civil Representation
MoJ,LAA,28/09/22,Legal Aid Higher Crime,LEGAL AID FUND,SALLIE A BENNETT JENKINS QC,2492624:161607111,"36,040.01",Legal Aid Higher Crime
MoJ,LAA,28/09/22,Legal Aid Lower Crime,LEGAL AID FUND,SANSBURY DOUGLAS,2496009:161595505,"51,000.00",Legal Aid Lower Crime
MoJ,LAA,28/09/22,Legal Aid Lower Crime,LEGAL AID FUND,SAUNDERS SOLICITORS LTD,2496516:161595362,"29,500.00",Legal Aid Lower Crime
MoJ,LAA,28/09/22,Legal Aid Civil Representation,LEGAL AID FUND,SBS SOLICITORS LTD,2493039:3000006452920023,"26,157.27",Legal Aid Civil Representation
MoJ,LAA,28/09/22,Legal Aid Higher Crime,LEGAL AID FUND,SCANLANS,2494712:161568999,"27,926.57",Legal Aid Higher Crime
MoJ,LAA,28/09/22,Legal Aid Higher Crime,LEGAL AID FUND,SHAIKH AYUB SOLICITORS,2495996:161601749,"107,574.54",Legal Aid Higher Crime
MoJ,LAA,28/09/22,Legal Aid Higher Crime,LEGAL AID FUND,SHAW GRAHAM KERSH,2496169:161601169,"107,574.07",Legal Aid Higher Crime
MoJ,LAA,28/09/22,Legal Aid Legal Help,LEGAL AID FUND,SHAWSTONE ASSOCIATES LTD,2495015:161595202,"39,815.45",Legal Aid Legal Help
MoJ,LAA,28/09/22,Legal Aid Lower Crime,LEGAL AID FUND,SHELLEY & CO,2494628:161594673,"44,527.10",Legal Aid Lower Crime
MoJ,LAA,28/09/22,Legal Aid Civil Representation,LEGAL AID FUND,SILLS & BETTERIDGE LLP,2491978:3000011440390027,"35,025.97",Legal Aid Civil Representation
MoJ,LAA,28/09/22,Legal Aid Lower Crime,LEGAL AID FUND,SIMPSON HEALD PEARSON,2494638:161595416,"30,700.00",Legal Aid Lower Crime
MoJ,LAA,28/09/22,Legal Aid Lower Crime,LEGAL AID FUND,SMITH PARTNERSHIP,2496059:161595327,"34,400.00",Legal Aid Lower Crime
MoJ,LAA,28/09/22,Legal Aid Lower Crime,LEGAL AID FUND,SMQ LEGAL SERVICES LLP,2492154:161595828,"32,010.23",Legal Aid Lower Crime
MoJ,LAA,28/09/22,Legal Aid Lower Crime,LEGAL AID FUND,SONN MACMILLAN WALKER LTD,2494887:161595339,"83,200.00",Legal Aid Lower Crime
MoJ,LAA,28/09/22,Legal Aid Legal Help,LEGAL AID FUND,SOUTHERNS SOLICITORS LTD,2493169:161594384,"43,925.26",Legal Aid Legal Help
MoJ,LAA,28/09/22,Legal Aid Civil Representation,LEGAL AID FUND,SPICKETTS BATTRICK SOLICITORS,2494853:3000005098870034,"31,065.72",Legal Aid Civil Representation
MoJ,LAA,28/09/22,Legal Aid Legal Help,LEGAL AID FUND,STAR LEGAL LTD,2491863:161595267,"39,085.56",Legal Aid Legal Help
MoJ,LAA,28/09/22,Legal Aid Higher Crime,LEGAL AID FUND,STEPHEN MOSES,2495797:161551753,"28,452.00",Legal Aid Higher Crime
MoJ,LAA,28/09/22,Legal Aid Lower Crime,LEGAL AID FUND,STEPHEN RIMMER LLP,2494642:161595444,"26,000.00",Legal Aid Lower Crime
MoJ,LAA,28/09/22,Legal Aid Higher Crime,LEGAL AID FUND,STEPHENSONS SOLICITORS LLP,2496382:161552228,"29,905.31",Legal Aid Higher Crime
MoJ,LAA,28/09/22,Legal Aid Civil Representation,LEGAL AID FUND,STERNBERG REED SOLICITORS,2492860:3000007077780028,"35,773.82",Legal Aid Civil Representation
MoJ,LAA,28/09/22,Legal Aid Lower Crime,LEGAL AID FUND,STERNBERG REED SOLICITORS,2492926:161595356,"25,400.00",Legal Aid Lower Crime
MoJ,LAA,28/09/22,Legal Aid Lower Crime,LEGAL AID FUND,STEVEN YOUNG & CO INC ROWBIS,2494574:161595563,"60,827.75",Legal Aid Lower Crime
MoJ,LAA,28/09/22,Legal Aid Lower Crime,LEGAL AID FUND,STEVENS SOLICITORS,2496403:161595482,"26,200.00",Legal Aid Lower Crime
MoJ,LAA,28/09/22,Legal Aid Lower Crime,LEGAL AID FUND,STEVENS SOLICITORS,2496404:161595481,"38,200.00",Legal Aid Lower Crime
MoJ,LAA,28/09/22,Legal Aid Lower Crime,LEGAL AID FUND,STEVENS SOLICITORS,2496405:161595480,"37,600.00",Legal Aid Lower Crime
MoJ,LAA,28/09/22,Legal Aid Lower Crime,LEGAL AID FUND,STUART MILLER SOLICITORS LTD,2493163:161594758,"98,703.89",Legal Aid Lower Crime
MoJ,LAA,28/09/22,Legal Aid Lower Crime,LEGAL AID FUND,SUSSEX DEFENCE SOLICITORS,2496050:161594522,"25,000.00",Legal Aid Lower Crime
MoJ,LAA,28/09/22,Legal Aid Civil Representation,LEGAL AID FUND,SWITALSKI'S SOLICITORS LTD,2496048:161555315,"30,000.00",Legal Aid Civil Representation
MoJ,LAA,28/09/22,Legal Aid Lower Crime,LEGAL AID FUND,T S LAW LTD,2495524:161594524,"28,000.00",Legal Aid Lower Crime
MoJ,LAA,28/09/22,Legal Aid Lower Crime,LEGAL AID FUND,T S LAW LTD,2496232:161595357,"28,000.00",Legal Aid Lower Crime
MoJ,LAA,28/09/22,Legal Aid Legal Help,LEGAL AID FUND,T V EDWARDS LLP,2493183:161594311,"35,448.50",Legal Aid Legal Help
MoJ,LAA,28/09/22,Legal Aid Lower Crime,LEGAL AID FUND,T V EDWARDS LLP,2493183:161594742,"29,401.78",Legal Aid Lower Crime
MoJ,LAA,28/09/22,Legal Aid Lower Crime,LEGAL AID FUND,TANG BENTLEY & JACKSON LIMITED,2493708:161595885,"27,009.19",Legal Aid Lower Crime
MoJ,LAA,28/09/22,Legal Aid Lower Crime,LEGAL AID FUND,TAYLOR HALDANE BARLEX LLP,2495366:161595855,"63,240.47",Legal Aid Lower Crime
MoJ,LAA,28/09/22,Legal Aid Lower Crime,LEGAL AID FUND,TEESSIDE LAW LTD,2493837:161595786,"35,795.28",Legal Aid Lower Crime
MoJ,LAA,28/09/22,Legal Aid Legal Help,LEGAL AID FUND,THALIWAL & VEJA SOLICITORS,2494520:161594438,"25,332.56",Legal Aid Legal Help
MoJ,LAA,28/09/22,Legal Aid Civil Representation,LEGAL AID FUND,THE FAMILY LAW CO BY HARTNELL CHANOT,2495509:3000009484710028,"25,957.34",Legal Aid Civil Representation
MoJ,LAA,28/09/22,Legal Aid Lower Crime,LEGAL AID FUND,THE JOHNSON PARTNERSHIP,2492138:161595829,"29,757.58",Legal Aid Lower Crime
MoJ,LAA,28/09/22,Legal Aid Lower Crime,LEGAL AID FUND,THE JOHNSON PARTNERSHIP,2493092:161594602,"37,512.71",Legal Aid Lower Crime
MoJ,LAA,28/09/22,Legal Aid Lower Crime,LEGAL AID FUND,THE JOHNSON PARTNERSHIP,2493094:161594598,"160,825.43",Legal Aid Lower Crime
MoJ,LAA,28/09/22,Legal Aid Lower Crime,LEGAL AID FUND,THE JOHNSON PARTNERSHIP,2493763:161595781,"36,095.77",Legal Aid Lower Crime
MoJ,LAA,28/09/22,Legal Aid Lower Crime,LEGAL AID FUND,THE JOHNSON PARTNERSHIP,2496007:161595635,"41,658.06",Legal Aid Lower Crime
MoJ,LAA,28/09/22,Legal Aid Lower Crime,LEGAL AID FUND,THE PURKISS PRACTICE,2496115:161595449,"41,200.00",Legal Aid Lower Crime
MoJ,LAA,28/09/22,Legal Aid Lower Crime,LEGAL AID FUND,THOMAS BOYD WHYTE SOLICITORS,2496515:161594716,"47,045.27",Legal Aid Lower Crime
MoJ,LAA,28/09/22,Legal Aid Lower Crime,LEGAL AID FUND,THOMPSON & CO SOLICITORS LTD,2493127:161595345,"34,600.00",Legal Aid Lower Crime
MoJ,LAA,28/09/22,Legal Aid Lower Crime,LEGAL AID FUND,TRANTERS SOLICITORS LTD,2494640:161595434,"26,400.00",Legal Aid Lower Crime
MoJ,LAA,28/09/22,Legal Aid Lower Crime,LEGAL AID FUND,TRINITY ADVOCATES,2496019:161595503,"29,100.00",Legal Aid Lower Crime
MoJ,LAA,28/09/22,Legal Aid Lower Crime,LEGAL AID FUND,TUCKERS SOLICITORS LLP,2493160:161594976,"144,647.01",Legal Aid Lower Crime
MoJ,LAA,28/09/22,Legal Aid Lower Crime,LEGAL AID FUND,TUCKERS SOLICITORS LLP,2493161:161594766,"151,878.81",Legal Aid Lower Crime
MoJ,LAA,28/09/22,Legal Aid Lower Crime,LEGAL AID FUND,TUCKERS SOLICITORS LLP,2493723:161595859,"43,301.67",Legal Aid Lower Crime
MoJ,LAA,28/09/22,Legal Aid Lower Crime,LEGAL AID FUND,TUCKERS SOLICITORS LLP,2493792:161595782,"54,777.06",Legal Aid Lower Crime
MoJ,LAA,28/09/22,Legal Aid Lower Crime,LEGAL AID FUND,TURNOCKS DEFENCE SOLICITORS LTD,2494805:161595599,"53,217.92",Legal Aid Lower Crime
MoJ,LAA,28/09/22,Legal Aid Legal Help,LEGAL AID FUND,TURPIN & MILLER LLP,2494502:161594494,"95,974.53",Legal Aid Legal Help
MoJ,LAA,28/09/22,Legal Aid Higher Crime,LEGAL AID FUND,TYLER HOFFMAN LTD,2493715:161579540,"107,574.07",Legal Aid Higher Crime
MoJ,LAA,28/09/22,Legal Aid Lower Crime,LEGAL AID FUND,TYLER HOFFMAN LTD,2493715:161595878,"31,890.50",Legal Aid Lower Crime
MoJ,LAA,28/09/22,Legal Aid Lower Crime,LEGAL AID FUND,USMANI KING LTD,2494501:161594634,"34,401.26",Legal Aid Lower Crime
MoJ,LAA,28/09/22,Legal Aid Lower Crime,LEGAL AID FUND,VCW LAW LTD,2494713:161594828,"43,740.49",Legal Aid Lower Crime
MoJ,LAA,28/09/22,Legal Aid Lower Crime,LEGAL AID FUND,VHS FLETCHERS,2493075:161594604,"56,976.81",Legal Aid Lower Crime
MoJ,LAA,28/09/22,Legal Aid Legal Help,LEGAL AID FUND,VIRGO SOLICITORS LTD,2495460:161595056,"36,567.96",Legal Aid Legal Help
MoJ,LAA,28/09/22,Legal Aid Lower Crime,LEGAL AID FUND,VYMAN SOLICITORS LTD,2494545:161594983,"43,148.22",Legal Aid Lower Crime
MoJ,LAA,28/09/22,Legal Aid Lower Crime,LEGAL AID FUND,WAINWRIGHT & CUMMINS LLP,2496095:161594787,"39,277.26",Legal Aid Lower Crime
MoJ,LAA,28/09/22,Legal Aid Lower Crime,LEGAL AID FUND,WALKER LAHIVE,2496267:161595544,"30,162.08",Legal Aid Lower Crime
MoJ,LAA,28/09/22,Legal Aid Lower Crime,LEGAL AID FUND,WANNOPS LLP,2492794:161595753,"33,361.20",Legal Aid Lower Crime
MoJ,LAA,28/09/22,Legal Aid Civil Representation,LEGAL AID FUND,WANNOPS LLP,2495514:3000005391010039,"45,212.97",Legal Aid Civil Representation
MoJ,LAA,28/09/22,Legal Aid Legal Help,LEGAL AID FUND,WATSON WOODHOUSE LTD,2493157:161594060,"41,600.00",Legal Aid Legal Help
MoJ,LAA,28/09/22,Legal Aid Lower Crime,LEGAL AID FUND,WATSON WOODHOUSE LTD,2493157:161595376,"62,300.00",Legal Aid Lower Crime
MoJ,LAA,28/09/22,Legal Aid Civil Representation,LEGAL AID FUND,WATSON WOODHOUSE LTD,2493157:3000006731120047,"32,017.64",Legal Aid Civil Representation
MoJ,LAA,28/09/22,Legal Aid Civil Representation,LEGAL AID FUND,WATSON WOODHOUSE LTD,2493157:3000006883030012,"34,089.38",Legal Aid Civil Representation
MoJ,LAA,28/09/22,Legal Aid Lower Crime,LEGAL AID FUND,WELLS BURCOMBE LLP,2492768:161595692,"74,692.57",Legal Aid Lower Crime
MoJ,LAA,28/09/22,Legal Aid Lower Crime,LEGAL AID FUND,WELLS BURCOMBE LLP,2495980:161594629,"60,816.16",Legal Aid Lower Crime
MoJ,LAA,28/09/22,Legal Aid Lower Crime,LEGAL AID FUND,WESSEX SOLICITORS CHAMBERS,2496022:161595504,"44,600.00",Legal Aid Lower Crime
MoJ,LAA,28/09/22,Legal Aid Higher Crime,LEGAL AID FUND,WESTGARTHS SOLICITORS WITH HODGSON COULTHARD,2492967:161569050,"48,098.02",Legal Aid Higher Crime
MoJ,LAA,28/09/22,Legal Aid Civil Representation,LEGAL AID FUND,WHATLEY RECORDON,2494858:3000006262390004,"48,694.20",Legal Aid Civil Representation
MoJ,LAA,28/09/22,Legal Aid Civil Representation,LEGAL AID FUND,WHITE & CO SOLICITORS,2496099:3000005972110027,"38,101.12",Legal Aid Civil Representation
MoJ,LAA,28/09/22,Legal Aid Lower Crime,LEGAL AID FUND,WILLIAMSONS SOLICITORS LTD,2494707:161595411,"38,500.00",Legal Aid Lower Crime
MoJ,LAA,28/09/22,Legal Aid Legal Help,LEGAL AID FUND,WILSON SOLICITORS LLP,2492236:161595058,"41,798.17",Legal Aid Legal Help
MoJ,LAA,28/09/22,Legal Aid Legal Help,LEGAL AID FUND,WILSON SOLICITORS LLP,2494625:161594301,"68,005.44",Legal Aid Legal Help
MoJ,LAA,28/09/22,Legal Aid Civil Representation,LEGAL AID FUND,WILSON SOLICITORS LLP,2494625:3000004258260055,"35,307.41",Legal Aid Civil Representation
MoJ,LAA,28/09/22,Legal Aid Civil Representation,LEGAL AID FUND,WILSON SOLICITORS LLP,2494625:3000004258260056,"26,925.21",Legal Aid Civil Representation
MoJ,LAA,28/09/22,Legal Aid Legal Help,LEGAL AID FUND,WIMBLEDON SOLICITORS,2494317:161593982,"32,598.38",Legal Aid Legal Help
MoJ,LAA,28/09/22,Legal Aid Civil Representation,LEGAL AID FUND,WISEMAN LEE LLP,2496412:3000005822290020,"40,058.43",Legal Aid Civil Representation
MoJ,LAA,28/09/22,Legal Aid Civil Representation,LEGAL AID FUND,WOLLENS,2492287:3000006172790036,"55,101.70",Legal Aid Civil Representation
MoJ,LAA,28/09/22,Legal Aid Legal Help,LEGAL AID FUND,WOLTON & CO,2496052:161594142,"33,010.39",Legal Aid Legal Help
MoJ,LAA,28/09/22,Legal Aid Higher Crime,LEGAL AID FUND,WOOLFE & CO SOLICITORS LTD,2492108:161601506,"32,059.07",Legal Aid Higher Crime
MoJ,LAA,28/09/22,Legal Aid Lower Crime,LEGAL AID FUND,WOOLLCOMBE YONGE LLP,2496457:161595543,"38,498.46",Legal Aid Lower Crime
MoJ,LAA,28/09/22,Legal Aid Lower Crime,LEGAL AID FUND,YOUNG & CO SOLICITORS T/A SWAIN & CO,2494575:161595508,"31,055.02",Legal Aid Lower Crime
MoJ,LAA,28/09/22,Legal Aid Legal Help,LEGAL AID FUND,YOUNG & CO SOLICITORS T/A SWAIN & CO,2494576:161594475,"30,633.51",Legal Aid Legal Help
MoJ,LAA,28/09/22,Legal Aid Lower Crime,LEGAL AID FUND,YOUNGS CLARKSON BAPTISTE SOLICITORS LTD,2494612:161594872,"39,581.16",Legal Aid Lower Crime
MoJ,LAA,28/09/22,Legal Aid Lower Crime,LEGAL AID FUND,YOUNGS LAW LTD,2494974:161596101,"48,443.63",Legal Aid Lower Crime
MoJ,LAA,28/09/22,Legal Aid Lower Crime,LEGAL AID FUND,ZMS LEGAL LTD TA ZMS SOLICITORS,2494486:161594595,"40,064.02",Legal Aid Lower Crime
MoJ,LAA,30/09/22,EXP - RENTALS UNDER NON-PFI OPERATING LEASES - BUILDINGS,Property Costs - Newcastle,GOVERNMENT PROPERTY AGENCY,00000001/16467,"31,104.00",Property related charges
